Cogmind - Beta 13 @@@ ROGUE MODE // 2024.03.31 @ 03:40:40 Player: puppuppit Result: Destroyed by H-88 Terminator with KE Penetrator Performance ------------- Evolutions (8) 4000 Regions Visited (31) 6200 Robots Destroyed (524) 2620 Value Destroyed (24551) 24551 Prototype IDs (87) 1740 Alien Tech Used (7) 1400 Bonus (18379) 18379 TOTAL SCORE: 58890 Bonus ------- Triggered High Security 1500 Triggered Max Security 3000 High Alert Combat Kills 8527 Follower Combat Kills 2562 Entered Garrisons 800 Aligned with FarCom 300 Acquired ECA 300 Met Zhirov 300 Met R17 at Cetus 500 Met R17 at Research 2000 Friendly Fire -1410 Cogmind --------- Core Integrity 0/1450 Matter 277/300 Energy 100/100 System Corruption 7% Temperature Cool (0) Movement Core (50) Location -2/Section 7 Parts ------- > --- POWER (2) -------- (None) > --- PROPULSION (5) --- (None) > --- UTILITY (12) ----- Advanced Targeting Computer > --- WEAPON (4) ------- (None) > --- INVENTORY (5) ---- Advanced Matter Compressor (48) Linear Accelerator Smartbomb Launcher Peak State ------------ > --- POWER ------------ Light Antimatter Reactor Light Antimatter Reactor > --- PROPULSION ------- Combat Antigrav System Antigrav Array Antigrav Array > --- UTILITY ---------- Advanced Heat Sink Advanced Visual Processing Unit Improved Targeting Computer Improved Targeting Computer Recoil Nullifier Improved Kinecellerator Centrium Medium Armor Plating Centrium Medium Armor Plating Improved Hacking Suite Improved System Shield > --- WEAPON ----------- Railgun Railgun Tiamat Missile Launcher Fusion Bomb Launcher > --- INVENTORY -------- Antigrav Array Advanced Matter Compressor Encrypted Comm Array Improved Medium Armor Plating [Rating: 138] Favorites ----------- Power Light Ion Engine Engine Light Ion Engine Power Core Micro Nuclear Core Reactor Light Antimatter Reactor Propulsion Combat Linear Gravjet Leg Carbon-fiber Leg Wheel Wheel Hover Unit Combat Linear Gravjet Flight Unit Improved Flight Unit Utility Small Storage Unit Device Advanced Heat Sink Storage Small Storage Unit Processor Machine Analyzer Hackware Makeshift Hacking Suite Protection Centrium Medium Armor Plating Weapon Gauss Rifle Energy Gun Medium Laser Energy Cannon Heavy Plasma Cannon Ballistic Gun Gauss Rifle Ballistic Cannon Hypervelocity Mass Driver Launcher Tiamat Missile Launcher Special Weapon Remote Datajack Slashing Weapon Ripper Special Melee Weapon Advanced Datajack Build | -11 -10 -10 -10 -9 -8 -8 -8 -8 -8 -7 -7 -7 -6 -6 -5 -5 -5 -5 -4 -4 -4 -4 -4 -4 -4 -4 -3 -3 -2 -2 -2 ------- Run | Yrd Mat Min Exi Min Mat Gar Mat Gar Mat Fac Low Low Fac Gar Fac Upp Upp Zhi Pro Fac Gar Fac Ext Cet Arc Hub Res Qua Res Tes Sec Slots Evolved 16 | . . . . . 4 . . . . 2 . . 2 . 2 . . . . 2 . . . . . . 2 . 2 . . Power 1 | . . . . . . . . . . . . . . . . . . . . . . . . . . . 1 . . . . Propulsion 3 | . . . . . 1 . . . . 1 . . . . . . . . . 1 . . . . . . . . . . . Utility 10 | . . . . . 1 . . . . 1 . . 2 . 2 . . . . 1 . . . . . . 1 . 2 . . Weapon 2 | . . . . . 2 . . . . . . . . . . . . . . . . . . . . . . . . . . Parts Attached 674 | 10 19 . 1 . 44 18 4 14 22 83 5 4 82 44 44 14 10 6 . 39 41 26 34 21 14 5 31 8 16 6 9 Power 71 | 1 2 . . . 6 3 . 2 4 7 . . 7 5 3 1 1 2 . 5 4 4 4 3 2 . 1 2 1 . 1 Engine 20 | 1 2 . . . 1 1 . 1 4 6 . . 1 2 1 . . . . . . . . . . . . . . . . Core 24 | . . . . . 5 2 . 1 . 1 . . 5 3 1 . 1 1 . 2 . 1 1 . . . . . . . . Reactor 27 | . . . . . . . . . . . . . 1 . 1 1 . 1 . 3 4 3 3 3 2 . 1 2 1 . 1 Propulsion 164 | 4 5 . . . 17 2 3 3 3 27 . . 17 20 10 1 . 2 . 3 8 1 7 5 5 1 8 5 3 1 3 Treads . | . . . . . . . . . . . . . . . . . . . . . . . . . . . . . . . . Leg 14 | . . . . . . . . . . 5 . . . 7 . . . . . . . . . 2 . . . . . . . Wheel 5 | 4 1 . . . . . . . . . . . . . . . . . . . . . . . . . . . . . . Hover 106 | . 4 . . . 17 2 3 3 3 12 . . 15 . 8 1 . 2 . 3 8 1 7 3 5 1 6 2 . . . Flight 39 | . . . . . . . . . . 10 . . 2 13 2 . . . . . . . . . . . 2 3 3 1 3 Utility 257 | 2 6 . . . 14 7 1 5 8 29 2 1 34 6 25 7 3 2 . 28 13 12 10 8 3 2 16 1 8 2 2 Device 150 | 1 2 . . . 5 2 . 3 6 26 2 1 18 3 15 3 3 1 . 24 9 8 2 2 . . 9 1 3 . 1 Storage 8 | 1 1 . . . 1 . . . 1 1 . . 2 . . . . . . . . 1 . . . . . . . . . Processor 31 | . 1 . . . 2 1 . 2 . 1 . . 5 1 5 1 . . . 2 1 . 2 1 . . 1 . 2 2 1 Hackware 32 | . . . . . 2 2 1 . . 1 . . 8 1 3 2 . . . 1 2 1 1 . 3 1 1 . 2 . . Protection 36 | . 2 . . . 4 2 . . 1 . . . 1 1 2 1 . 1 . 1 1 2 5 5 . 1 5 . 1 . . Artifact . | . . . . . . . . . . . . . . . . . . . . . . . . . . . . . . . . Weapon 182 | 3 6 . 1 . 7 6 . 4 7 20 3 3 24 13 6 5 6 . . 3 16 9 13 5 4 2 6 . 4 3 3 Energy Gun 11 | 3 . . . . 1 . . . . . . . 1 . . . . . . . . 2 3 1 . . . . . . . Energy Cannon 4 | . . . . . . . . . . . . . 1 2 . . . . . . . . . . . . . . . 1 . Ballistic Gun 96 | . 6 . 1 . 6 5 . 3 4 13 2 2 14 8 6 2 4 . . 1 8 1 1 2 3 1 2 . . 1 . Ballistic Cannon 40 | . . . . . . . . . 2 3 . . 2 1 . . 2 . . 1 5 5 9 2 1 1 1 . 2 1 2 Launcher 25 | . . . . . . 1 . 1 1 4 1 1 6 . . . . . . 1 3 1 . . . . 3 . 1 . 1 Special Weapon 2 | . . . . . . . . . . . . . . 2 . . . . . . . . . . . . . . . . . Impact Weapon . | . . . . . . . . . . . . . . . . . . . . . . . . . . . . . . . . Slashing Weapon 3 | . . . . . . . . . . . . . . . . 3 . . . . . . . . . . . . . . . Piercing Weapon . | . . . . . . . . . . . . . . . . . . . . . . . . . . . . . . . . Special Melee Weapon 1 | . . . . . . . . . . . . . . . . . . . . . . . . . . . . . 1 . . Unidentified Prototypes 33 | . . . . . 3 1 . . . 3 . . 2 . 2 . . 4 . 3 . 1 . 2 . . 4 4 . 3 1 Parts Lost 180 | . 5 . . . 2 3 . 5 6 19 . 4 18 10 11 3 1 . . 1 11 9 16 12 1 9 . 19 2 8 5 Power 23 | . 2 . . . . 1 . 1 1 2 . 1 1 . . 1 . . . . 1 2 2 2 . 1 . 3 . 1 1 Propulsion 56 | . 1 . . . 2 1 . 2 2 11 . . 8 5 1 . . . . . . . 3 4 1 4 . 5 . 3 3 Utility 61 | . 1 . . . . 1 . . 1 4 . 2 3 3 7 1 1 . . 1 6 3 7 4 . 3 . 8 2 2 1 Weapon 40 | . 1 . . . . . . 2 2 2 . 1 6 2 3 1 . . . . 4 4 4 2 . 1 . 3 . 2 . Highest Loss Streak 19 | . 2 . . . 1 2 . 2 2 9 . 2 7 4 6 1 1 . . 1 4 3 15 10 1 5 . 19 1 8 3 To Critical Strikes 5 | . . . . . . . . . . . . . 1 . 1 . . . . . 1 . . 2 . . . . . . . Average Slot Usage (%) 83 | . 90 100 100 100 73 81 100 98 94 80 76 73 88 71 93 92 94 98 100 99 90 84 88 79 87 85 77 69 35 35 20 Engine 2 | . 5 14 14 14 1 . . 3 8 4 7 5 . 1 1 . . . . . . . . . . . . . . . . Core 2 | . . . . . 7 8 9 5 . . . . 4 1 2 . 1 5 5 1 . 1 1 . . . . . . . . Reactor 1 | . . . . . . . . . . . . . 1 . 1 5 3 . . 3 4 3 3 3 5 4 3 5 3 2 2 Hover 16 | . 14 28 28 28 27 27 27 26 26 16 . . 19 2 17 23 23 23 23 26 25 26 23 20 15 20 14 12 . . . Flight 6 | . . . . . . . . . . 6 30 30 6 10 5 . . . . . . . . . . . 2 . 6 5 10 Device 10 | . 4 14 14 14 9 7 . 3 8 13 15 11 7 5 9 17 20 18 17 17 14 10 7 5 5 4 8 11 8 2 . Storage 4 | . 14 14 14 14 9 9 9 9 9 7 7 7 5 . . . . . . . . 1 . . . . . . . . . Processor 5 | . 1 . . . 1 . 6 5 9 4 7 7 3 3 8 17 5 5 5 5 6 5 6 8 10 10 13 13 4 11 5 Hackware 10 | . . . . . 1 3 11 8 . 3 . . 20 27 20 6 11 11 11 12 20 20 17 12 11 14 11 4 4 5 . Protection 3 | . 7 . . . 4 5 . . . . . . . 2 3 1 5 8 11 9 3 5 8 12 19 13 6 6 3 . . Ballistic Gun 12 | . 20 28 28 28 11 19 36 34 28 17 7 9 13 6 18 10 13 11 11 10 5 1 . 5 10 14 7 6 . 1 . Ballistic Cannon 2 | . . . . . . . . . 2 1 . . . 2 . . 4 11 11 9 6 5 8 5 . . 1 . . 2 1 Naked Turns 34 | . . . . . . . . . . . . . . . . . . . . . . . . . . . . 1 33 . . Heaviest Build 74 | 13 15 12 12 12 31 32 23 23 25 34 15 15 40 22 42 44 49 49 49 63 74 71 58 72 65 57 67 66 21 28 30 Greatest Support 70 | 32 20 12 12 12 33 33 26 26 26 39 15 15 43 60 50 50 50 50 50 61 70 70 70 61 50 50 68 68 26 26 38 Greatest Overweight (x) 7 | . 1 . . . 1 . . 1 1 7 . . 1 2 1 . . . . 1 1 1 1 2 2 2 1 . . 1 . Average Overweight (x) . | . . . . . . . . . . . . . . . . . . . . . . . . . 1 . . . . . . Largest Inventory Capacity 8 | 8 8 8 8 8 8 8 8 8 8 8 8 8 8 8 5 5 5 5 5 5 5 5 5 5 5 5 5 5 5 5 5 Average Capacity 6 | 7 8 8 8 8 8 8 8 8 8 8 8 8 7 5 5 5 5 5 5 5 5 5 5 5 5 5 5 5 5 5 5 Most Carried 8 | 3 8 8 8 8 8 8 8 8 8 8 8 8 8 8 5 5 5 5 5 5 5 5 5 5 5 5 5 5 5 5 5 Average Carried 6 | . 7 8 7 8 7 7 7 7 7 7 7 6 7 5 4 4 5 4 5 4 4 4 4 4 4 4 4 4 4 4 3 Final Capacity 8 | 8 8 8 8 8 8 8 8 8 8 8 8 8 8 5 5 5 5 5 5 5 5 5 5 5 5 5 5 5 5 5 5 Final Carried 8 | 3 8 8 8 8 8 8 8 7 7 7 8 5 8 5 5 5 5 5 5 5 5 4 5 3 5 5 5 4 5 5 4 Class Distribution -------------------- 23% | Mutant 17% | Hacker-Skirmisher 10% | Hacker-Mutant 10% | Skirmisher 9% | Scavenger-Skirmisher 6% | Scavenger-Mutant 3% | Scavenger-Gunner 3% | Hacker-Gunner 3% | Hacker-Tank Dominant Class ---------------- Mutant | -10/Materials Mutant | -10/Mines Mutant | -10/Exiles Mutant | -9/Mines Skirmisher | -8/Materials Skirmisher | -8/Garrison Scavenger-Skirmisher | -8/Materials Scavenger-Skirmisher | -8/Garrison Scavenger-Skirmisher | -8/Materials Scavenger-Skirmisher | -7/Factory Mutant | -7/Lower Caves Mutant | -7/Lower Caves Hacker-Skirmisher | -6/Factory Hacker-Mutant | -6/Garrison Hacker-Gunner | -5/Factory Scavenger-Mutant | -5/Upper Caves Scavenger-Gunner | -5/Upper Caves Hacker-Tank | -5/Zhirov Hacker-Tank | -4/Proximity Caves Hacker-Skirmisher | -4/Factory Hacker-Skirmisher | -4/Garrison Hacker-Skirmisher | -4/Factory Scavenger-Skirmisher | -4/Extension Scavenger-Tank | -4/Cetus Scavenger-Mutant | -4/Archives Scavenger-Tank | -4/Hub_04(d) Scavenger-Gunner | -3/Research Scavenger-Gunner | -3/Quarantine Hacker-Mutant | -2/Research Hacker-Mutant | -2/Testing Mutant | -2/Section 7 Resources | -11 -10 -10 -10 -9 -8 -8 -8 -8 -8 -7 -7 -7 -6 -6 -5 -5 -5 -5 -4 -4 -4 -4 -4 -4 -4 -4 -3 -3 -2 -2 -2 ----------- Run | Yrd Mat Min Exi Min Mat Gar Mat Gar Mat Fac Low Low Fac Gar Fac Upp Upp Zhi Pro Fac Gar Fac Ext Cet Arc Hub Res Qua Res Tes Sec Matter Collected 23672 | 350 648 . . . 2046 1201 153 1074 864 2186 203 150 2527 1412 1687 296 273 . 49 1656 1717 838 1078 847 654 195 957 305 . . 306 Remotely 2370 | . 113 . . . 411 130 . . 143 917 130 26 500 . . . . . . . . . . . . . . . . . . Salvage Created 21945 | 187 819 . . . 2445 1366 222 1263 1245 1819 180 69 2454 997 1495 274 228 . 19 1785 1049 910 272 967 499 471 501 337 . . 72 Parts 1142 | 17 49 . . . 138 102 17 92 74 92 2 3 116 54 86 16 15 . 5 63 48 28 8 38 26 21 17 10 . . 5 Haulers Intercepted 27 | . 2 . . . 6 . . . 2 4 . . 5 . 2 . . . . 3 . . . . . 1 2 . . . . Recyclers Shooed 19 | . 2 . . . . . . . . 2 . . 8 . 2 . . . . 3 . 2 . . . . . . . . . Parts Field Recycled . | . . . . . . . . . . . . . . . . . . . . . . . . . . . . . . . . Retrieved Matter . | . . . . . . . . . . . . . . . . . . . . . . . . . . . . . . . . Parts Self-Destructed 40 | . . . . . . . . . . . 2 3 . . . 11 19 . 5 . . . . . . . . . . . . Prevented . | . . . . . . . . . . . . . . . . . . . . . . . . . . . . . . . . Kills | -11 -10 -10 -10 -9 -8 -8 -8 -8 -8 -7 -7 -7 -6 -6 -5 -5 -5 -5 -4 -4 -4 -4 -4 -4 -4 -4 -3 -3 -2 -2 -2 ------- Run | Yrd Mat Min Exi Min Mat Gar Mat Gar Mat Fac Low Low Fac Gar Fac Upp Upp Zhi Pro Fac Gar Fac Ext Cet Arc Hub Res Qua Res Tes Sec Combat Hostiles Destroyed 363 | . 13 . . . 26 36 3 33 23 31 7 3 31 28 16 7 7 . 2 20 26 11 3 14 4 5 3 8 . . 3 Melee 1 | . . . . . . . . . . . . . . . . 1 . . . . . . . . . . . . . . . Guns 248 | . 13 . . . 26 36 3 30 14 23 1 3 17 18 16 6 5 . 2 10 7 4 . 1 4 5 2 2 . . . Cannons 58 | . . . . . . . . . 2 . . . 2 10 . . 2 . . 9 11 6 3 13 . . . . . . . AOE 56 | . . . . . . . . 3 7 8 6 . 12 . . . . . . 1 8 1 . . . . 1 6 . . 3 Classes Destroyed 23 | 3 4 . . . 7 1 . . 3 . . . . 1 1 . . . . . 2 . . 1 . . . . . . . Worker 36 | 2 3 . . . 11 . . . . 8 . . 3 . 6 . . . . . . 2 . . . . 1 . . . . Builder 10 | . . . . . 2 . . . . 3 . . 2 . . . . . . . . 3 . . . . . . . . . Tunneler 9 | 4 . . . . 1 . . . 2 . . . 1 . . . . . . . . . . . . . 1 . . . . Hauler 27 | . 2 . . . 6 . . . 2 4 . . 5 . 2 . . . . 3 . . . . . 1 2 . . . . Recycler 24 | 1 3 . . . 4 . 1 . . 3 . . 4 . . . . . . 5 . 2 . . . . 1 . . . . Carrier 1 | . . . . . . . . . . . . . . . . . . . . . . . . 1 . . . . . . . Mechanic 7 | . . . . . . . . . 1 2 . . . . 2 . . . . 1 . . . . . . . 1 . . . Operator 19 | . . . . . 3 . 1 . 2 1 . . 3 . 3 . . . . . . . 1 . 4 . 1 . . . . Drone 3 | . . . . . . . . . . . . . . . 1 . . . 2 . . . . . . . . . . . . Watcher 23 | . 2 . . . 5 1 1 1 1 2 . . 2 . 5 . . . . 1 . 1 . 1 . . . . . . . Swarmer 103 | . 6 . . . . 15 3 10 3 3 3 2 6 16 4 4 6 . . 8 6 . . . . . 1 4 . . 3 Cutter 8 | . . . . . 2 . . 2 . . . . 3 . . . . . . . . 1 . . . . . . . . . Saboteur 5 | . . . . . . . . . . . . . . . . . . . . . 4 . . . . . . 1 . . . Grunt 113 | . 7 . . . 12 6 . 5 14 18 1 . 12 4 6 . . . . 8 6 3 . 5 . 2 1 3 . . . Brawler 8 | . . . . . 1 . . 2 . 1 2 . . . . . . . . 1 . . . 1 . . . . . . . Duelist 12 | . . . . . 1 2 . . 1 4 . . . 1 . . . . . . 3 . . . . . . . . . . Protector 4 | . . . . . . . . . 1 . . . 1 . . . . . . . 1 1 . . . . . . . . . Sentry 61 | . . . . . 8 8 1 12 3 1 1 . 3 5 1 1 1 . . . 4 3 2 . 4 3 . . . . . Demolisher 1 | . . . . . . . . . . . . . . . . . . . . . 1 . . . . . . . . . . Hunter 17 | . . . . . 2 2 . 2 . 1 . . 2 . 2 1 . . . . 2 2 . . . . 1 . . . . Programmer 18 | . . . . . . 3 . . . 3 . 1 4 1 2 1 . . . 3 . . . . . . . . . . . Heavy 2 | . . . . . . . . . 1 . . . . . . . . . . . . 1 . . . . . . . . . Behemoth 2 | . . . . . . . . . . . . . . 1 . . . . . . . . 1 . . . . . . . . Cetus Guard 8 | . . . . . . . . . . . . . . . . . . . . . . . . 8 . . . . . . . Wasp 1 | . . . . . . . . . . . . . . . . . . . . . . 1 . . . . . . . . . Thug 1 | . . . . . . . . . . . . . . . . . . . . . . . 1 . . . . . . . . Savage 2 | . . . . . . . . . . . . . . . . . . . . . . . 2 . . . . . . . . Best Kill Streak 13 | 4 5 . . . 6 9 5 9 7 13 6 2 6 5 5 4 4 . 1 10 6 9 2 7 2 4 3 4 . . 3 Combat Bots Only 9 | . 5 . . . 4 9 2 8 7 9 6 2 5 5 3 4 4 . 1 5 6 3 1 7 2 4 1 4 . . 3 Max Kills in Single Turn 7 | 1 1 . . . 2 1 1 3 3 3 3 1 3 2 2 2 1 . 1 2 4 7 1 2 1 1 3 4 . . 3 Gunslinging 1 | . . . . . . . . 1 . 1 . . . 1 1 1 . . . . . . . . . . . . . . . Exploded 4 | . . . . . . . . 2 3 3 3 . 3 . . . . . . 1 3 1 . . . . 1 4 . . 3 Melee 1 | . . . . . . . . . . . . . . . . 1 . . . . . . . . . . . . . . . Uniques/NPCs Destroyed . | . . . . . . . . . . . . . . . . . . . . . . . . . . . . . . . . Combat | -11 -10 -10 -10 -9 -8 -8 -8 -8 -8 -7 -7 -7 -6 -6 -5 -5 -5 -5 -4 -4 -4 -4 -4 -4 -4 -4 -3 -3 -2 -2 -2 -------- Run | Yrd Mat Min Exi Min Mat Gar Mat Gar Mat Fac Low Low Fac Gar Fac Upp Upp Zhi Pro Fac Gar Fac Ext Cet Arc Hub Res Qua Res Tes Sec Hostile Shots Fired 2549 | . 103 . . . 26 67 6 44 55 186 47 65 315 255 112 43 17 . . 103 98 140 104 166 29 156 32 183 70 92 35 Missed 1011 | . 34 . . . 9 25 2 13 23 61 22 35 127 116 40 20 6 . . 54 37 50 33 63 8 40 14 87 48 26 18 Damage Taken 29732 | . 679 . . . 453 640 43 723 804 2086 206 461 2400 1646 1327 428 184 . . 908 1727 2050 2050 2360 557 2009 405 2708 548 1747 583 Core 5514 | . 147 . . . 33 80 9 123 81 467 78 139 368 440 150 79 54 . . 65 53 88 225 270 30 123 28 814 72 1149 349 Absorbed by Shields 205 | . . . . . . . . 9 . . . . 128 68 . . . . . . . . . . . . . . . . . Redirected to Shielding 266 | . . . . . . . . . . . . . . . . . . . . 82 81 31 72 . . . . . . . . Regen/Repaired (Parts) 959 | . . . . . 63 . . . . . . . 287 . 274 . . . . 299 . 36 . . . . . . . . . Core Remaining (%) 37 | 100 . . . 41 . . . . 40 . . 2 . 4 . . . . 71 . . . . . . 19 . 19 . . . Volleys Fired 1407 | 17 88 . . . 106 79 15 87 71 112 10 21 141 121 85 15 13 . 4 85 103 47 28 43 46 25 23 16 2 1 3 Largest 4 | 2 2 . . . 3 4 4 4 4 4 1 2 4 3 4 2 4 . 2 4 4 3 4 4 3 3 2 2 1 1 1 Hottest 259 | 100 100 . . . 65 80 80 80 101 132 39 63 165 90 116 68 132 . 59 202 166 183 259 225 162 105 112 70 66 66 66 Shots Fired 3094 | 34 174 . . . 148 121 60 248 205 301 10 29 312 179 286 29 38 . 7 185 214 97 73 98 94 74 46 26 2 1 3 Gun 2625 | 34 174 . . . 148 120 60 246 182 273 7 25 289 128 286 29 30 . 7 123 155 45 9 46 83 74 30 22 . . . Cannon 415 | . . . . . . . . . 20 19 . . 10 50 . . 8 . . 62 53 51 64 52 11 . 10 . 2 1 2 Launcher 53 | . . . . . . 1 . 2 3 9 3 4 13 . . . . . . . 6 1 . . . . 6 4 . . 1 Special 1 | . . . . . . . . . . . . . . 1 . . . . . . . . . . . . . . . . . Kinetic 2905 | . 130 . . . 148 120 60 246 202 292 7 25 288 174 286 29 38 . 7 185 208 67 65 93 94 74 40 22 2 1 2 Thermal 124 | 34 44 . . . . . . . . . . . 11 4 . . . . . . . 29 2 . . . . . . . . Explosive 53 | . . . . . . 1 . 2 3 9 3 4 13 . . . . . . . 6 1 . . . . 6 4 . . 1 Electromagnetic 11 | . . . . . . . . . . . . . . . . . . . . . . . 6 5 . . . . . . . Robot Hit Streak 31 | 8 10 . . . 11 11 4 19 11 18 5 4 31 13 10 8 6 . 1 12 11 8 10 15 10 9 8 18 . . . Robot Miss Streak 10 | 2 6 . . . 10 4 7 6 6 5 6 3 7 6 7 3 4 . 9 6 6 5 3 3 4 2 4 4 . . . Penetration Max 2 | . . . . . . . . . 1 1 . . 2 . 1 . . . . 1 1 . . 1 1 1 . 2 . . . Secondary Targets 31 | . 2 . . . . 1 1 5 1 4 . . 2 3 1 2 . . . 2 2 1 . . . 2 1 1 . . . Max Gunslinging Chain 1 | . 1 . . . . 1 1 1 1 1 . . 1 1 1 1 . . . 1 1 1 . . . 1 1 1 . . . Shots Hit Robots 1815 | 21 98 . . . 112 82 19 105 122 183 7 13 210 113 156 24 17 . 2 99 110 54 43 74 62 50 26 13 . . . Core Hits 1040 | 8 40 . . . 83 52 8 52 61 108 13 5 143 82 73 12 9 . 2 66 54 37 11 37 24 19 15 22 . . 4 Critical Kills 56 | . 1 . . . . . . . 1 4 . . 10 . . 2 4 . . 11 1 2 3 14 1 . 1 1 . . . Critical Parts Destroyed 66 | . . . . . . . . . . 5 . 1 12 . 3 1 3 . . 16 . . 3 12 6 2 1 1 . . . Critical Strikes 151 | . 5 . . . . . . . 1 9 . 1 22 . 3 4 7 . . 27 5 3 12 34 11 3 2 2 . . . Burn 4 | . 4 . . . . . . . . . . . . . . . . . . . . . . . . . . . . . . Destroy 133 | . 1 . . . . . . . 1 9 . 1 22 . 3 3 7 . . 27 1 2 9 30 10 3 2 2 . . . Blast 13 | . . . . . . . . . . . . . . . . . . . . . 4 1 3 4 1 . . . . . . Sever 1 | . . . . . . . . . . . . . . . . 1 . . . . . . . . . . . . . . . Melee Attacks 7 | . . . . . . . . . . . . . . . . 7 . . . . . . . . . . . . . . . Impact . | . . . . . . . . . . . . . . . . . . . . . . . . . . . . . . . . Slashing 7 | . . . . . . . . . . . . . . . . 7 . . . . . . . . . . . . . . . Piercing . | . . . . . . . . . . . . . . . . . . . . . . . . . . . . . . . . Sneak Attacks . | . . . . . . . . . . . . . . . . . . . . . . . . . . . . . . . . Combat Hostiles . | . . . . . . . . . . . . . . . . . . . . . . . . . . . . . . . . Follow-up Attacks 2 | . . . . . . . . . . . . . . . . 2 . . . . . . . . . . . . . . . Damage Inflicted 55900 | 264 1002 . . . 4253 3144 483 2207 2940 6465 550 353 6014 2470 3800 662 431 . 37 2758 4941 3597 1376 1892 1705 1461 1093 1667 . 13 322 Guns 36950 | 264 1002 . . . 4147 3144 483 2010 1873 4203 125 217 3704 1413 3790 476 352 . 37 2145 1964 615 157 842 1579 1448 460 500 . . . Cannons 9248 | . . . . . . . . . 215 197 . . 216 1057 . . 79 . . 613 2089 2329 1219 1019 126 . 89 . . . . Explosions 9455 | . . . . . 106 . . 197 852 2065 425 136 2094 . 10 . . . . . 888 653 . . . . 544 1163 . . 322 Melee 186 | . . . . . . . . . . . . . . . . 186 . . . . . . . . . . . . . . . Ramming 61 | . . . . . . . . . . . . . . . . . . . . . . . . 31 . 13 . 4 . 13 . Kinetic 44668 | . 666 . . . 4147 3144 483 2010 2088 4400 125 217 3672 2405 3790 476 431 . 37 2758 4053 2567 1219 1778 1705 1448 549 500 . . . Thermal 1527 | 264 336 . . . . . . . . 183 . . 248 65 . . . . . . . 377 54 . . . . . . . . Explosive 9166 | . . . . . . . . 197 852 1882 425 136 2094 . 10 . . . . . 888 653 . . . . 544 1163 . . 322 Electromagnetic 292 | . . . . . 106 . . . . . . . . . . . . . . . . . 103 83 . . . . . . . Impact . | . . . . . . . . . . . . . . . . . . . . . . . . . . . . . . . . Slashing 186 | . . . . . . . . . . . . . . . . 186 . . . . . . . . . . . . . . . Piercing . | . . . . . . . . . . . . . . . . . . . . . . . . . . . . . . . . Highest Corruption 19 | . . . . . 1 3 3 3 3 1 . . . . 2 2 2 2 2 5 6 10 12 12 12 19 . 9 2 7 7 Average Corruption 5 | . . . . . 1 2 3 3 3 1 . . . . 1 2 2 2 2 4 5 9 10 12 12 12 . 5 1 5 7 Corruption Purged 3 | . . . . . 1 . . . . 2 . . . . . . . . . . . . . . . . . . . . . Corruption Blocked 14 | . . . . . . . . . . . . . 12 . . . . . . 2 . . . . . . . . . . . Effects 250 | . . . . . 1 8 1 26 15 . . . . . 3 6 . . 2 21 52 23 26 21 14 21 . . 2 3 5 Message Errors 67 | . . . . . . 3 . 6 3 . . . . . . 3 . . 1 6 14 8 9 4 4 2 . . 1 . 3 Matter Fused 49 | . . . . . 1 1 . 4 2 . . . . . . . . . . 4 13 5 5 2 3 6 . . 1 1 1 Heat Flow Errors 36 | . . . . . . 2 1 6 . . . . . . . 2 . . . 2 9 5 . 4 2 2 . . . 1 . Energy Discharges 22 | . . . . . . . . 6 2 . . . . . . . . . . 3 4 . 3 . 1 2 . . . 1 . Parts Rejected 4 | . . . . . . 1 . . 2 . . . . . . . . . . . . 1 . . . . . . . . . Parts Fused 5 | . . . . . . . . . 1 . . . . . . . . . 1 1 1 . . . 1 . . . . . . Data Loss (minor) 26 | . . . . . . 1 . 1 . . . . . . 2 . . . . 2 7 . 5 4 3 1 . . . . . Data Loss (major) 4 | . . . . . . . . . 2 . . . . . . . . . . . 1 . . . . 1 . . . . . Misfires 4 | . . . . . . . . . . . . . . . 1 . . . . . 1 1 . . . 1 . . . . . Alerts 6 | . . . . . . . . . . . . . . . . 1 . . . 1 1 1 1 . . . . . . . 1 Misdirections 10 | . . . . . . . . . . . . . . . . . . . . . . 1 1 3 . 5 . . . . . Weapon Failures 17 | . . . . . . . . 3 3 . . . . . . . . . . 2 1 1 2 4 . 1 . . . . . Overload Shots . | . . . . . . . . . . . . . . . . . . . . . . . . . . . . . . . . Overflow Damage 842 | . . . . . . . . 38 47 144 19 93 . . . . . . . 1 48 394 . . . . 13 19 . . 26 Projectiles 404 | . . . . . . . . . 3 . . . . . . . . . . 1 39 361 . . . . . . . . . Explosions 438 | . . . . . . . . 38 44 144 19 93 . . . . . . . . 9 33 . . . . 13 19 . . 26 Melee . | . . . . . . . . . . . . . . . . . . . . . . . . . . . . . . . . Knockbacks 57 | . . . . . . . . . . 2 . . 1 34 . . 1 . . 3 2 9 4 1 . . . . . . . Impact . | . . . . . . . . . . . . . . . . . . . . . . . . . . . . . . . . Kinetic 52 | . . . . . . . . . . 1 . . 1 31 . . 1 . . 3 2 8 4 1 . . . . . . . Secondary 5 | . . . . . . . . . . 1 . . . 3 . . . . . . . 1 . . . . . . . . . Self-Inflicted Damage 759 | . . . . . 59 . . 207 . 27 . 88 41 . . . . . . . 207 50 . 15 . 6 . 53 . 6 . Shots 15 | . . . . . 2 . . 3 . 1 . 2 2 . . . . . . . 3 1 . . . . . 1 . . . Rammed 9 | . . . . . . . . . . . . . . . . . . . . . . . . 1 . 3 . 2 . 3 . Targets Rammed 9 | . . . . . . . . . . . . . . . . . . . . . . . . 1 . 3 . 2 . 3 . Kicked . | . . . . . . . . . . . . . . . . . . . . . . . . . . . . . . . . Crushed . | . . . . . . . . . . . . . . . . . . . . . . . . . . . . . . . . Highest Temperature 494 | 351 308 . . . 283 334 494 401 238 288 7 5 235 110 379 220 42 . . 141 320 241 220 264 164 210 21 . . 440 . Average Temperature 76 | 126 72 . . . 65 103 158 110 63 55 4 5 43 17 79 113 15 . . 40 72 79 44 58 71 121 21 . . 204 . Received Heat Transfer 5631 | . 201 . . . 108 63 . 192 171 840 54 30 539 355 264 18 . . . 111 584 312 219 526 99 246 82 356 90 153 18 Effects 20 | . 1 . . . 4 1 3 3 2 . . . . . 3 . . . . . . . . . . . . . . 3 . Shutdowns 2 | . . . . . . . . 1 . . . . . . 1 . . . . . . . . . . . . . . . . Energy Bleed 3 | . . . . . 1 1 1 . . . . . . . . . . . . . . . . . . . . . . . . Interference 12 | . 1 . . . 3 . . 1 2 . . . . . 2 . . . . . . . . . . . . . . 3 . Short Circuit 1 | . . . . . . . 1 . . . . . . . . . . . . . . . . . . . . . . . . Damage (minor) 2 | . . . . . . . 1 1 . . . . . . . . . . . . . . . . . . . . . . . Siege Activations . | . . . . . . . . . . . . . . . . . . . . . . . . . . . . . . . . Robots Corrupted . | . . . . . . . . . . . . . . . . . . . . . . . . . . . . . . . . Combat Hostiles . | . . . . . . . . . . . . . . . . . . . . . . . . . . . . . . . . Parts Fried 1 | . . . . . 1 . . . . . . . . . . . . . . . . . . . . . . . . . . Impact Corruptions 1 | . . . . . . . . . . . . . . . . . . . . . . 1 . . . . . . . . . Robots Melted . | . . . . . . . . . . . . . . . . . . . . . . . . . . . . . . . . Combat Hostiles . | . . . . . . . . . . . . . . . . . . . . . . . . . . . . . . . . Parts Melted 12 | 1 4 . . . 3 . . . . 1 . . 1 . . . . . . . . . . . . . 2 . . . . Heat Transferred 3484 | 753 1295 . . . . . . . . 150 . . 400 100 . . . . . . . 712 74 . . . . . . . . Parts Sabotaged 7 | . . . . . . . . . . . . . . . . . . . . . . . . . . . . 2 . 5 . Parts Stolen . | . . . . . . . . . . . . . . . . . . . . . . . . . . . . . . . . Parts Stripped . | . . . . . . . . . . . . . . . . . . . . . . . . . . . . . . . . Power Chain Reactions . | . . . . . . . . . . . . . . . . . . . . . . . . . . . . . . . . Alert | -11 -10 -10 -10 -9 -8 -8 -8 -8 -8 -7 -7 -7 -6 -6 -5 -5 -5 -5 -4 -4 -4 -4 -4 -4 -4 -4 -3 -3 -2 -2 -2 ------- Run | Yrd Mat Min Exi Min Mat Gar Mat Gar Mat Fac Low Low Fac Gar Fac Upp Upp Zhi Pro Fac Gar Fac Ext Cet Arc Hub Res Qua Res Tes Sec Peak Influence 2603 | 35 350 85 . . 862 2173 1161 2337 1750 1723 . . 851 1986 1830 . . . . 853 2603 1860 1284 734 509 298 310 1922 1407 1775 1816 Initial 1366 | . 22 85 . . . 531 1058 754 1138 1100 . . 305 588 1042 . . . . 306 597 1366 1100 410 293 177 135 130 1100 791 1100 Average 1058 | 12 172 85 . . 459 1535 1116 1506 1470 1321 . . 506 1088 1345 . . . . 394 1938 1668 930 581 447 214 203 1711 1193 1627 1699 Maximum Alert Level 5 | . 1 . . . 3 5 4 5 5 5 . . 3 5 5 . . . . 3 5 5 4 3 2 1 1 5 4 5 5 Low Security (%) 7 | 100 46 100 . 100 21 . . . . . . . . . . . . . . 14 . . . . . 38 42 . . . . Level 1 11 | . 53 . . . 20 . . . . . . . 27 . . . . . . 33 . . . . 17 61 57 . . . . Level 2 15 | . . . . . 31 5 . . . . . . 54 12 . . . . . 45 1 . 13 77 82 . . . . . . Level 3 17 | . . . . . 25 20 18 36 . 9 . . 18 48 22 . . . . 6 12 . 56 22 . . . . . . . Level 4 21 | . . . . . . 24 81 12 70 69 . . . 22 56 . . . . . 9 28 30 . . . . . 100 . . Level 5 20 | . . . . . . 48 . 50 18 21 . . . 16 14 . . . . . 76 38 . . . . . . . . . High Security 1 | . . . . . . . . . 10 . . . . . 7 . . . . . . 32 . . . . . . . . . Max Security 3 | . . . . . . . . . . . . . . . . . . . . . . . . . . . . 99 . 99 99 Squads Dispatched 137 | . 2 . . . 7 . . . 4 12 . . 23 . 12 . . . . 13 . 16 2 . . 5 3 13 7 12 6 Investigation 25 | . 2 . . . 2 . . . . 4 . . 6 . 3 . . . . 4 . 1 . . . . . . 3 . . Extermination 9 | . . . . . . . . . . 1 . . 4 . 1 . . . . 1 . . . . . 1 . . 1 . . Reinforcement 40 | . . . . . 5 . . . 2 2 . . 6 . 4 . . . . 5 . 5 2 . . 4 3 . 2 . . Assault 55 | . . . . . . . . . 2 5 . . 3 . 4 . . . . . . 9 . . . . . 13 1 12 6 Garrison 8 | . . . . . . . . . . . . . 4 . . . . . . 3 . 1 . . . . . . . . . Intercept . | . . . . . . . . . . . . . . . . . . . . . . . . . . . . . . . . Searches Triggered 1 | . . . . . . . . . . . . . . . . . . . . 1 . . . . . . . . . . . Construction Impeded 7 | . . . . . . . . . . 1 . . 3 . . . . . . 1 . 2 . . . . . . . . . Haulers Reinforced 8 | . . . . . . . . . . . . . . . 2 . . . . 3 . . . . . . 3 . . . . Active Scanning Responses . | . . . . . . . . . . . . . . . . . . . . . . . . . . . . . . . . Cargo Convoy Interrupts . | . . . . . . . . . . . . . . . . . . . . . . . . . . . . . . . . Stealth | -11 -10 -10 -10 -9 -8 -8 -8 -8 -8 -7 -7 -7 -6 -6 -5 -5 -5 -5 -4 -4 -4 -4 -4 -4 -4 -4 -3 -3 -2 -2 -2 --------- Run | Yrd Mat Min Exi Min Mat Gar Mat Gar Mat Fac Low Low Fac Gar Fac Upp Upp Zhi Pro Fac Gar Fac Ext Cet Arc Hub Res Qua Res Tes Sec Distress Signals 33 | . 1 . . . 1 . 1 2 2 . . . 1 . 2 . . . . 2 . 5 4 2 . 1 7 . 1 . 1 Communications Jammed 20 | . . . . . . . . . . . . . . . . . . . . . . . . . . . . . 13 7 . Distress Signals 20 | . . . . . . . . . . . . . . . . . . . . . . . . . . . . . 13 7 . Times Spotted 842 | . 25 . . . 34 45 6 33 36 55 6 7 68 39 61 8 9 . 7 51 45 49 20 19 23 19 13 96 22 32 14 Peak Tracking Total 53 | . 6 . . . 5 7 3 8 7 8 7 3 12 5 11 4 4 . 4 10 8 17 5 9 1 11 4 53 13 23 15 Tactical Retreats 69 | . 4 . . . 2 7 . 1 . 5 . 4 2 3 15 1 1 . . 4 2 4 3 1 . 1 . . 3 4 2 Traps | -11 -10 -10 -10 -9 -8 -8 -8 -8 -8 -7 -7 -7 -6 -6 -5 -5 -5 -5 -4 -4 -4 -4 -4 -4 -4 -4 -3 -3 -2 -2 -2 ------- Run | Yrd Mat Min Exi Min Mat Gar Mat Gar Mat Fac Low Low Fac Gar Fac Upp Upp Zhi Pro Fac Gar Fac Ext Cet Arc Hub Res Qua Res Tes Sec Traps Triggered 44 | . . . . . 5 3 . 9 . 2 . . 5 8 1 . . . . 2 7 . . . . . . 1 1 . . Indirectly . | . . . . . . . . . . . . . . . . . . . . . . . . . . . . . . . . Trap Hack Attempts . | . . . . . . . . . . . . . . . . . . . . . . . . . . . . . . . . Triggered . | . . . . . . . . . . . . . . . . . . . . . . . . . . . . . . . . Disarmed 9 | . . . . . . . . . . . . . 4 . . . . . . . . . 5 . . . . . . . . Reprogrammed 10 | . . . . . . . . . . . . . 6 . . . . . . . . . . . . . 4 . . . . Reused 4 | . . . . . . . . 3 . . . . 1 . . . . . . . . . . . . . . . . . . Traps Extracted . | . . . . . . . . . . . . . . . . . . . . . . . . . . . . . . . . Installed 12 | . . . . . . . . 12 . . . . . . . . . . . . . . . . . . . . . . . Triggered 5 | . . . . . . . . 3 . . . . 1 . . 1 . . . . . . . . . . . . . . . Most Traps Carried 2 | . . . . . . . . 2 . . . . . . . . . . . . . . . . . . . . . . . Machines | -11 -10 -10 -10 -9 -8 -8 -8 -8 -8 -7 -7 -7 -6 -6 -5 -5 -5 -5 -4 -4 -4 -4 -4 -4 -4 -4 -3 -3 -2 -2 -2 ---------- Run | Yrd Mat Min Exi Min Mat Gar Mat Gar Mat Fac Low Low Fac Gar Fac Upp Upp Zhi Pro Fac Gar Fac Ext Cet Arc Hub Res Qua Res Tes Sec Machines Disabled 136 | . . . . . 11 11 . 17 5 13 . . 15 16 13 . . . . 4 10 1 3 1 4 4 1 4 . 1 2 Max in Single Turn 7 | . . . . . 3 1 . 2 1 7 . . 6 2 2 . . . . 1 2 1 1 1 1 2 1 2 . 1 1 Garrison Access 6 | . . . . . . . . . . 1 . . . . 1 . . . . 1 . 1 . . . . 2 . . . . Garrison Relay 20 | . . . . . . 5 . 6 . . . . . 5 . . . . . . 4 . . . . . . . . . . Phase Generator 3 | . . . . . . 1 . 1 . . . . . 1 . . . . . . . . . . . . . . . . . Energy Cycler 1 | . . . . . . . . . . . . . . . . . . . . . . . 1 . . . . . . . . Machines Repaired . | . . . . . . . . . . . . . . . . . . . . . . . . . . . . . . . . Machines Dismantled . | . . . . . . . . . . . . . . . . . . . . . . . . . . . . . . . . Machines Sabotaged . | . . . . . . . . . . . . . . . . . . . . . . . . . . . . . . . . Overloaded Fab Kills . | . . . . . . . . . . . . . . . . . . . . . . . . . . . . . . . . Hacking | -11 -10 -10 -10 -9 -8 -8 -8 -8 -8 -7 -7 -7 -6 -6 -5 -5 -5 -5 -4 -4 -4 -4 -4 -4 -4 -4 -3 -3 -2 -2 -2 --------- Run | Yrd Mat Min Exi Min Mat Gar Mat Gar Mat Fac Low Low Fac Gar Fac Upp Upp Zhi Pro Fac Gar Fac Ext Cet Arc Hub Res Qua Res Tes Sec Machines Accessed 158 | . 10 . 5 . 10 2 3 4 8 18 1 . 20 2 10 1 1 7 1 14 1 7 7 3 . 5 9 . 9 . . Terminals 94 | . 8 . . . 6 2 2 4 6 12 . . 10 2 3 . . . 1 5 1 3 7 3 . 5 7 . 7 . . Fabricators 14 | . . . . . . . . . . 1 . . 3 . 4 . . . . 4 . 1 . . . . . . 1 . . Repair Stations 11 | . 1 . . . 2 . . . 2 . . . 2 . 1 . . . . 2 . 1 . . . . . . . . . Recycling Units 5 | . 1 . . . . . . . . 1 . . 2 . 1 . . . . . . . . . . . . . . . . Scanalyzers 7 | . . . . . 1 . . . . 2 . . 1 . . . . . . 1 . 1 . . . . . . 1 . . Garrison Access 12 | . . . . . 1 . 1 . . 2 . . 2 . 1 . . . . 2 . 1 . . . . 2 . . . . Total Hacks 572 | . 34 . 50 . 32 6 5 8 28 53 1 . 90 5 41 1 1 46 1 42 3 23 25 7 . 23 27 . 20 . . Successful 349 | . 15 . 50 . 20 . 3 4 12 17 1 . 49 3 24 1 1 46 1 32 1 15 15 5 . 8 16 . 10 . . Failed 222 | . 18 . . . 12 6 2 4 16 36 . . 41 2 17 . . . . 10 2 8 10 2 . 15 11 . 10 . . Catastrophic 41 | . 2 . . . 1 2 . . 4 9 . . 8 . 2 . . . . 1 . 1 . . . 6 1 . 4 . . Database Lockouts 1 | . 1 . . . . . . . . . . . . . . . . . . . . . . . . . . . . . . Manual 171 | . 6 . 1 . 14 . 3 3 10 12 . . 31 3 8 . . . . 15 1 5 21 . . 19 11 . 8 . . Terminals 312 | . 27 . . . 17 6 4 8 21 39 . . 50 5 15 . . . 1 19 3 6 25 7 . 23 22 . 14 . . Fabricators 43 | . . . . . . . . . . 2 . . 9 . 15 . . . . 10 . 4 . . . . . . 3 . . Repair Stations 45 | . 5 . . . 8 . . . 7 . . . 12 . 6 . . . . 5 . 2 . . . . . . . . . Recycling Units 7 | . 2 . . . . . . . . 2 . . 2 . 1 . . . . . . . . . . . . . . . . Scanalyzers 40 | . . . . . 5 . . . . 6 . . 13 . . . . . . 6 . 7 . . . . . . 3 . . Garrison Access 26 | . . . . . 2 . 1 . . 4 . . 4 . 4 . . . . 2 . 4 . . . . 5 . . . . Terminal Hacks 216 | . 12 . 50 . 8 . 2 4 10 15 1 . 15 3 6 1 1 46 1 8 1 . 9 5 . 6 9 . 3 . . Record 94 | . 5 . 49 . . . . . 1 . . . . . . . . 34 1 . . . . 4 . . . . . . . Part Schematic 5 | . . . . . . . . . . . . . . . 1 . . 4 . . . . . . . . . . . . . Robot Schematic 4 | . . . . . . . . . . 1 . . . . 2 . . . . 1 . . . . . . . . . . . Robot Analysis 22 | . 1 . . . 5 . 1 . 3 2 . . 3 . . . . 4 . 2 . . . . . 1 . . . . . Prototype ID Bank 20 | . 2 . . . 2 . . . 4 3 . . 3 . . . . 4 . . . . 1 . . . 1 . . . . Open Door 7 | . . . . . . . . . . . 1 . . 1 . 1 1 . . . . . 1 1 . . 1 . . . . Open DSF 2 | . . . . . . . . . . 1 . . . . . . . . . . . . . . . . . . 1 . . Level Access Points 2 | . . . . . . . 1 . . . . . . . . . . . . . . . . . . 1 . . . . . Branch Access Points 7 | . 1 . . . . . . . . 1 . . . . 1 . . . . 1 . . . . . 1 1 . 1 . . Emergency Access Points 3 | . . . . . . . . 1 . . . . . 1 . . . . . . 1 . . . . . . . . . . Terminal Index 7 | . . . . . 1 . . . 1 1 . . 1 . . . . . . 1 . . 1 . . . . . 1 . . Fabricator Index 1 | . . . . . . . . . . 1 . . . . . . . . . . . . . . . . . . . . . Alert Level 1 | . . . . . . . . . . . . . . . . . . . . . . . 1 . . . . . . . . Unreport Threat 8 | . . . . . . . . . . 1 . . 2 . 1 . . . . . . . 3 . . 1 . . . . . Locate Traps 2 | . 1 . . . . . . . . 1 . . . . . . . . . . . . . . . . . . . . . Disarm Traps 3 | . . . . . . . . . . . . . 2 . . . . . . . . . 1 . . . . . . . . Reprogram Traps 2 | . . . . . . . . . . . . . 1 . . . . . . . . . . . . . 1 . . . . Dispatch Records 1 | . . . . . . . . . . . . . . . . . . . . 1 . . . . . . . . . . . Transport Status 1 | . . . . . . . . . . 1 . . . . . . . . . . . . . . . . . . . . . Recall Investigation 2 | . . . . . . . . . . . . . 1 . 1 . . . . . . . . . . . . . . . . Recall Reinforcements 5 | . . . . . . . . . . . . . . . . . . . . 1 . . 1 . . 1 2 . . . . Registered Components 1 | . . . . . . . . . . . . . . . . . . . . . . . . . . . 1 . . . . Registered Prototypes 1 | . 1 . . . . . . . . . . . . . . . . . . . . . . . . . . . . . . Zone Layout 10 | . 1 . . . . . . . 1 2 . . 2 . . . . . . 1 . . . . . 1 2 . . . . Garrison Registry 2 | . . . . . . . . 1 . . . . . 1 . . . . . . . . . . . . . . . . . Patrol Navigation 1 | . . . . . . . . 1 . . . . . . . . . . . . . . . . . . . . . . . Security Stations 1 | . . . . . . . . 1 . . . . . . . . . . . . . . . . . . . . . . . Derelict Proto ID Bank 1 | . . . 1 . . . . . . . . . . . . . . . . . . . . . . . . . . . . Fabricator Hacks 25 | . . . . . . . . . . . . . 2 . 8 . . . . 8 . 4 . . . . . . 3 . . Network Status 4 | . . . . . . . . . . . . . 1 . 1 . . . . 1 . . . . . . . . 1 . . Load Schematic 11 | . . . . . . . . . . . . . 1 . 3 . . . . 4 . 2 . . . . . . 1 . . Build 10 | . . . . . . . . . . . . . . . 4 . . . . 3 . 2 . . . . . . 1 . . Repair Station Hacks 30 | . 2 . . . 6 . . . 2 . . . 8 . 5 . . . . 5 . 2 . . . . . . . . . Scan Component 18 | . 2 . . . 3 . . . 2 . . . 4 . 3 . . . . 3 . 1 . . . . . . . . . Repair 12 | . . . . . 3 . . . . . . . 4 . 2 . . . . 2 . 1 . . . . . . . . . Recycling Unit Hacks 4 | . 1 . . . . . . . . . . . 2 . 1 . . . . . . . . . . . . . . . . Retrieve Components 4 | . 1 . . . . . . . . . . . 2 . 1 . . . . . . . . . . . . . . . . Scanalyzer 34 | . . . . . 5 . . . . 1 . . 13 . . . . . . 6 . 7 . . . . . . 2 . . Insert Component 16 | . . . . . 2 . . . . 1 . . 6 . . . . . . 3 . 3 . . . . . . 1 . . Analyze 18 | . . . . . 3 . . . . . . . 7 . . . . . . 3 . 4 . . . . . . 1 . . Garrison Access Hacks 11 | . . . . . 1 . 1 . . 1 . . 2 . 1 . . . . 2 . 1 . . . . 2 . . . . Unlock Access 5 | . . . . . 1 . 1 . . . . . 2 . . . . . . 1 . . . . . . . . . . . Seal Access 6 | . . . . . . . . . . 1 . . . . 1 . . . . 1 . 1 . . . . 2 . . . . Unauthorized Hacks 29 | . . . . . . . . . . . . . 7 . 3 . . . . 3 . 1 6 . . 2 5 . 2 . . Terminals 29 | . . . . . . . . . . . . . 7 . 3 . . . . 3 . 1 6 . . 2 5 . 2 . . Botnet 29 | . . . . . . . . . . . . . 7 . 3 . . . . 3 . 1 6 . . 2 5 . 2 . . Fabricators . | . . . . . . . . . . . . . . . . . . . . . . . . . . . . . . . . Repair Stations . | . . . . . . . . . . . . . . . . . . . . . . . . . . . . . . . . Recycling Units . | . . . . . . . . . . . . . . . . . . . . . . . . . . . . . . . . Scanalyzers . | . . . . . . . . . . . . . . . . . . . . . . . . . . . . . . . . Garrison Access . | . . . . . . . . . . . . . . . . . . . . . . . . . . . . . . . . Data Cores Recovered 6 | . . . . . . . 1 . 1 1 . . 2 . . . . . . . . . . . . . 1 . . . . Used 2 | . . . . . . . 1 . . . . . 1 . . . . . . . . . . . . . . . . . . Hacking Detections 116 | . 9 . . . 8 2 2 2 8 16 . . 15 1 9 . . . . 11 1 6 6 1 . 5 7 . 7 . . Full Trace Events 27 | . 3 . . . 1 2 . . 2 3 . . 4 . 3 . . . . 4 1 1 . . . . . . 3 . . Feedback Events 3 | . . . . . . 1 . . . . . . 1 . 1 . . . . . . . . . . . . . . . . Corruption 2 | . . . . . . 1 . . . . . . . . 1 . . . . . . . . . . . . . . . . Hackware Fried 1 | . . . . . . . . . . . . . 1 . . . . . . . . . . . . . . . . . . Feedback Blocked . | . . . . . . . . . . . . . . . . . . . . . . . . . . . . . . . . Robot Schematics Acquired 4 | . . . . . . . . . . 1 . . . . 2 . . . . 1 . . . . . . . . . . . Robots Built 12 | . . . . . . . . . . . . . . . 2 . . . . 6 . 4 . . . . . . . . . Authchips 2 | . . . . . . . . . . . . . . . . . . . . . . 2 . . . . . . . . . Time 713 | . . . . . . . . . . . . . . . 154 . . . . 373 . 186 . . . . . . . . . Total Robot Build Rating 76 | . . . . . . . . . . . . . . . 6 . . . . 42 . 28 . . . . . . . . . Part Schematics Acquired 18 | . . . . . 2 . . . . . . . 6 . 1 . . 4 . 1 . 3 . . . . . . 1 . . Parts Built 5 | . . . . . . . . . . . . . . . 4 . . . . . . . . . . . . . 1 . . Authchips . | . . . . . . . . . . . . . . . . . . . . . . . . . . . . . . . . Time 412 | . . . . . . . . . . . . . . . 208 . . . . . . . . . . . . . 204 . . Total Part Build Rating 44 | . . . . . . . . . . . . . . . 36 . . . . . . . . . . . . . 8 . . Parts Repaired 12 | . . . . . 3 . . . . . . . 4 . 2 . . . . 2 . 1 . . . . . . . . . Time 458 | . . . . . 90 . . . . . . . 184 . 74 . . . . 88 . 22 . . . . . . . . . Parts Recycled . | . . . . . . . . . . . . . . . . . . . . . . . . . . . . . . . . Recycled Matter . | . . . . . . . . . . . . . . . . . . . . . . . . . . . . . . . . Retrieved Matter . | . . . . . . . . . . . . . . . . . . . . . . . . . . . . . . . . Retrieved Components 10 | . 4 . . . . . . . . . . . 4 . 2 . . . . . . . . . . . . . . . . Parts Scanalyzed 14 | . . . . . 2 . . . . . . . 6 . . . . . . 2 . 3 . . . . . . 1 . . Part Schematics Acquired 13 | . . . . . 2 . . . . . . . 6 . . . . . . 1 . 3 . . . . . . 1 . . Parts Damaged 2 | . . . . . . . . . . . . . 1 . . . . . . . . . . . . . . . 1 . . Bothacking | -11 -10 -10 -10 -9 -8 -8 -8 -8 -8 -7 -7 -7 -6 -6 -5 -5 -5 -5 -4 -4 -4 -4 -4 -4 -4 -4 -3 -3 -2 -2 -2 ------------ Run | Yrd Mat Min Exi Min Mat Gar Mat Gar Mat Fac Low Low Fac Gar Fac Upp Upp Zhi Pro Fac Gar Fac Ext Cet Arc Hub Res Qua Res Tes Sec Used RIF Installer . | . . . . . . . . . . . . . . . . . . . . . . . . . . . . . . . . Robots Hacked . | . . . . . . . . . . . . . . . . . . . . . . . . . . . . . . . . Non-combat . | . . . . . . . . . . . . . . . . . . . . . . . . . . . . . . . . Combat . | . . . . . . . . . . . . . . . . . . . . . . . . . . . . . . . . Robot Hacks Applied . | . . . . . . . . . . . . . . . . . . . . . . . . . . . . . . . . Relay Couplers Released 80 | . . . . . . 20 . 26 . . . . . 18 . . . . . . 16 . . . . . . . . . . Machine Destruction 80 | . . . . . . 20 . 26 . . . . . 18 . . . . . . 16 . . . . . . . . . . Fabnet Peak Effective % . | . . . . . . . . . . . . . . . . . . . . . . . . . . . . . . . . Robots Rewired 31 | . . . . . . 3 . 3 . . . . 1 1 . . . . . . 9 . 14 . . . . . . . . Allies Hacked . | . . . . . . . . . . . . . . . . . . . . . . . . . . . . . . . . Hacks Repelled . | . . . . . . . . . . . . . . . . . . . . . . . . . . . . . . . . Allies | -11 -10 -10 -10 -9 -8 -8 -8 -8 -8 -7 -7 -7 -6 -6 -5 -5 -5 -5 -4 -4 -4 -4 -4 -4 -4 -4 -3 -3 -2 -2 -2 -------- Run | Yrd Mat Min Exi Min Mat Gar Mat Gar Mat Fac Low Low Fac Gar Fac Upp Upp Zhi Pro Fac Gar Fac Ext Cet Arc Hub Res Qua Res Tes Sec Total Allies 52 | . . 3 . . . 3 . 3 . . . . 1 3 2 . . . . 6 9 7 15 . . . . . . . . Largest Group 9 | . . 3 3 3 3 2 3 3 3 . . . 1 2 3 . . . . 6 8 8 9 . . . . . . . . Highest-Rated Group 351 | . . 40 40 40 40 10 15 54 54 . . . 30 148 200 . . . . 336 336 317 351 . . . . . . . . Highest-Rated Ally 148 | . . 16 16 16 16 5 5 18 18 . . . 30 148 148 . . . . 56 85 85 51 . . . . . . . . Warlord Squad Rendezvous 14 | . . . . . . . . . . . . . 4 . 2 . . . . 4 . 3 . . . . 1 . . . . Dakka 5 | . . . . . . . . . . . . . 1 . . . . . . 2 . 2 . . . . . . . . . Infantry 1 | . . . . . . . . . . . . . . . 1 . . . . . . . . . . . . . . . . Muscle 2 | . . . . . . . . . . . . . 1 . . . . . . . . 1 . . . . . . . . . Geek 2 | . . . . . . . . . . . . . 1 . . . . . . 1 . . . . . . . . . . . Ranger 1 | . . . . . . . . . . . . . . . . . . . . 1 . . . . . . . . . . . Chimera 2 | . . . . . . . . . . . . . 1 . 1 . . . . . . . . . . . . . . . . Ghost 1 | . . . . . . . . . . . . . . . . . . . . . . . . . . . 1 . . . . Total Orders 52 | . . . . . . . . 2 . . . . 3 4 5 . . . . 8 21 9 . . . . . . . . . STAY 23 | . . . . . . . . 1 . . . . . 2 3 . . . . 2 13 2 . . . . . . . . . FOLLOW 15 | . . . . . . . . 1 . . . . . 2 2 . . . . 1 8 1 . . . . . . . . . EXPLORE 14 | . . . . . . . . . . . . . 3 . . . . . . 5 . 6 . . . . . . . . . Ally Attacks 405 | . . . . . 25 . 11 4 16 . . . 1 58 2 . . . . 42 116 75 55 . . . . . . . . Total Damage 14029 | . . . . . 297 . 51 39 425 . . . 84 1975 . . . . . 1318 4777 2986 2077 . . . . . . . . Kills 73 | . . . . . . . 1 1 3 . . . 1 8 . . . . . 11 19 18 11 . . . . . . . . Allies Corrupted 1 | . . . . . . . . . 1 . . . . . . . . . . . . . . . . . . . . . . Allies Melted 3 | . . . . . . . . . . . . . . . . . . . . . . 1 2 . . . . . . . . Intel | -11 -10 -10 -10 -9 -8 -8 -8 -8 -8 -7 -7 -7 -6 -6 -5 -5 -5 -5 -4 -4 -4 -4 -4 -4 -4 -4 -3 -3 -2 -2 -2 ------- Run | Yrd Mat Min Exi Min Mat Gar Mat Gar Mat Fac Low Low Fac Gar Fac Upp Upp Zhi Pro Fac Gar Fac Ext Cet Arc Hub Res Qua Res Tes Sec Robot Analysis Total 22 | . 1 . . . 5 . 1 . 3 2 . . 3 . . . . 4 . 2 . . . . . 1 . . . . . Derelict Logs Recovered 3 | . . . . . . . . . . . 1 . . . . 1 . . 1 . . . . . . . . . . . . Drone Launches 15 | . . . . . . . . . . . . . 4 . . . . . . 5 . 6 . . . . . . . . . Drone Recoveries 7 | . . . . . . . . . . . . . 2 . . . . . . 1 . 4 . . . . . . . . . Exploration | -11 -10 -10 -10 -9 -8 -8 -8 -8 -8 -7 -7 -7 -6 -6 -5 -5 -5 -5 -4 -4 -4 -4 -4 -4 -4 -4 -3 -3 -2 -2 -2 ------------- Run | Yrd Mat Min Exi Min Mat Gar Mat Gar Mat Fac Low Low Fac Gar Fac Upp Upp Zhi Pro Fac Gar Fac Ext Cet Arc Hub Res Qua Res Tes Sec Turns Passed 23827 | 132 858 76 211 42 1272 977 101 1194 530 1676 3146 333 1951 1746 1323 362 252 114 169 1155 2193 646 642 399 334 338 601 262 387 210 195 Spaces Moved 26252 | 66 821 98 308 44 1654 1445 106 1555 499 1905 535 754 2382 1887 1872 569 448 190 362 1534 2411 778 725 303 144 309 646 330 780 328 464 Core 287 | 1 . . . . . . . . . 25 . . . 41 . . . . . . . . . . . . . 17 65 131 7 Treads . | . . . . . . . . . . . . . . . . . . . . . . . . . . . . . . . . Legs 272 | . . . . . . . . . . 43 . . . 228 . . . . . . . . . 1 . . . . . . . Wheels 464 | 65 399 . . . . . . . . . . . . . . . . . . . . . . . . . . . . . . Hover 20043 | . 422 98 308 44 1654 1445 106 1555 499 1380 . . 1726 516 1591 569 448 190 362 1534 2411 778 725 302 144 309 646 281 . . . Flight 5186 | . . . . . . . . . . 457 535 754 656 1102 281 . . . . . . . . . . . . 32 715 197 457 Fastest Speed 26 | 50 56 56 56 56 42 42 45 45 48 32 34 34 34 26 26 44 44 44 44 37 37 52 43 42 46 46 50 35 37 35 34 Average Speed 50 | 93 67 56 56 56 50 43 46 46 49 53 34 34 47 60 46 44 44 44 44 42 58 52 53 65 116 76 66 55 38 59 35 Slowest Speed 400 | 100 120 56 56 56 112 45 48 111 116 400 34 34 131 190 160 44 44 44 44 109 135 146 150 260 181 151 110 66 50 117 50 Overloaded Moves . | . . . . . . . . . . . . . . . . . . . . . . . . . . . . . . . . Propulsion Burnouts . | . . . . . . . . . . . . . . . . . . . . . . . . . . . . . . . . Robots Hopped 56 | . . . . . . . . . . 6 . 1 4 . 6 . . . . . . . . . . . . 2 25 7 5 Cave-ins Triggered . | . . . . . . . . . . . . . . . . . . . . . . . . . . . . . . . . Teleports 3 | . . . . . . . . . . . . . . . . . . . . 1 . . . . . . . 2 . . . Exploration Rate (%) 53 | 4 90 18 63 10 89 90 11 90 44 39 73 49 52 90 27 71 53 62 58 42 92 20 75 88 88 35 20 66 28 43 47 Regions Visited 31 Branch Regions 16 Pre-discovered Areas 6 | . . . 1 . . . . . . . 1 . . . . . . 3 1 . . . . . . . . . . . . Known Exits Taken 13 | . 1 . . . 1 . 1 . 1 1 1 . 1 . 1 . . . . 1 . 1 . . . 1 1 . 1 . . Unknown Exits Taken 14 | 1 . 1 1 1 . . . . . . . 1 . . . 1 1 1 1 . . . 1 1 1 . . 1 . 1 . Scrap Searched 8 | . . . . . . . . . . . 1 1 . . . 2 2 . 2 . . . . . . . . . . . . Spaces Dug 26 | . . . . . 9 . . . 1 2 . . . . . . . . . . . 3 . . . . 9 . 2 . . Terrain Destroyed 1523 | . . . . . 83 157 . 223 23 76 19 63 213 161 99 19 13 . 3 14 134 38 20 10 23 17 54 41 2 . 18 Melee . | . . . . . . . . . . . . . . . . . . . . . . . . . . . . . . . . Projectile 363 | . . . . . 83 2 . . 5 5 . 3 6 9 74 19 13 . 3 14 34 21 19 10 23 17 . 1 2 . . AOE 1158 | . . . . . . 155 . 223 18 71 19 60 206 152 25 . . . . . 100 17 . . . . 54 40 . . 18 Terrain Rammed . | . . . . . . . . . . . . . . . . . . . . . . . . . . . . . . . . Walls Destroyed . | . . . . . . . . . . . . . . . . . . . . . . . . . . . . . . . . Machines Disabled . | . . . . . . . . . . . . . . . . . . . . . . . . . . . . . . . . Actions | -11 -10 -10 -10 -9 -8 -8 -8 -8 -8 -7 -7 -7 -6 -6 -5 -5 -5 -5 -4 -4 -4 -4 -4 -4 -4 -4 -3 -3 -2 -2 -2 --------- Run | Yrd Mat Min Exi Min Mat Gar Mat Gar Mat Fac Low Low Fac Gar Fac Upp Upp Zhi Pro Fac Gar Fac Ext Cet Arc Hub Res Qua Res Tes Sec Total 34543 | 99 976 118 347 60 2056 1786 148 1965 658 2345 3488 799 2929 2355 2144 642 480 222 365 1901 3028 919 918 422 219 352 771 377 836 333 485 Wait 5083 | . 14 21 34 17 190 154 22 115 47 150 2933 22 237 152 106 32 2 14 . 185 373 52 64 37 1 6 40 6 52 . 5 Move 26119 | 65 820 97 307 43 1653 1444 105 1554 498 1893 534 751 2373 1886 1859 568 447 189 361 1533 2409 777 724 302 143 308 645 326 733 318 454 Hop 45 | . . . . . . . . . . 5 . 1 4 . 6 . . . . . . . . . . . . 1 21 2 5 Pick Up 224 | 3 14 . 1 . 23 13 1 15 7 33 2 . 37 14 12 1 . 3 . 12 4 3 4 4 2 1 4 5 4 . 2 Fast Attach 344 | 8 8 . . . 14 6 . 7 7 34 1 . 31 23 24 11 8 5 . 14 23 14 20 16 9 3 24 9 15 5 5 Attach 124 | . 1 . . . 7 4 . 2 3 22 1 3 16 9 6 1 . . . 7 5 10 3 4 2 2 3 5 2 1 5 Detach 108 | 1 2 . . . 4 . . 3 1 17 1 . 16 7 9 3 . . . 7 4 8 2 4 6 1 3 3 2 1 3 Swap 217 | 2 10 . 1 . 23 8 4 5 12 27 3 1 36 12 14 2 2 2 . 19 13 2 11 1 3 . 4 . . . . Drop 395 | 3 19 . 4 . 36 13 1 18 12 52 3 . 34 35 23 4 8 9 . 20 23 6 15 10 7 2 25 4 5 2 2 Fire 1407 | 17 88 . . . 106 79 15 87 71 112 10 21 141 121 85 15 13 . 4 85 103 47 28 43 46 25 23 16 2 1 3 Melee 5 | . . . . . . . . . . . . . . . . 5 . . . . . . . . . . . . . . . Ram 10 | . . . . . . . . . . . . . . . . . . . . . . . . 1 . 4 . 2 . 3 . Kick . | . . . . . . . . . . . . . . . . . . . . . . . . . . . . . . . . Crush . | . . . . . . . . . . . . . . . . . . . . . . . . . . . . . . . . Escape Stasis 286 | . . . . . . 39 . 103 . . . . . 96 . . . . . 19 29 . . . . . . . . . . Rewire 164 | . . . . . . 26 . 44 . . . . 4 . . . . . . . 42 . 47 . . . . . . . 1 Trap 12 | . . . . . . . . 12 . . . . . . . . . . . . . . . . . . . . . . . Miscellaneous . | . . . . . . . . . . . . . . . . . . . . . . . . . . . . . . . . Route ------- -11/Scrapyard -10/Materials (discovered 4 exits: [*Mat x3] / *Min) -10/Mines -10/Exiles -9/Mines -8/Materials (discovered 4 exits: *Fac x3 / Gar) -8/Garrison (discovered 4 exits: *Mat x4) -8/Materials (discovered 4 exits: Fac x3 / Gar) -8/Garrison (discovered 3 exits: *Mat x3) -8/Materials -7/Factory (discovered 3 exits: *Fac / *Low x2) -7/Lower Caves -7/Lower Caves -6/Factory (discovered 5 exits: *Fac x2 / [*Low] / Gar / Gar) -6/Garrison (discovered 4 exits: *Fac x3 / [Fac]) -5/Factory (discovered 2 exits: *Upp x2) -5/Upper Caves -5/Upper Caves -5/Zhirov -4/Proximity Caves -4/Factory (discovered 8 exits: *Res x2 / *Upp x2 / Ext x2 / Arm / Gar) -4/Garrison (discovered 3 exits: *Fac x3) -4/Factory (discovered 2 exits: *Res / *Ext) -4/Extension (discovered 3 exits: *Res x2 / *Cet) -4/Cetus (discovered 2 exits: *Res / *Arc) -4/Archives (discovered 3 exits: *Res / *Hub x2) -4/Hub_04(d) (discovered 4 exits: *Res x4) -3/Research (discovered 2 exits: *Qua x2) -3/Quarantine -2/Research (discovered 2 exits: *Tes x2) -2/Testing -2/Section 7 History --------- Turn | Location | Event 29 | -11/Scrapyard | Discovered new exit (range 14) 133 | -11/Scrapyard | Entered Materials 194 | -10/Materials | Identified exit to Mines 209 | -10/Materials | Discovered new exit (range 12) 313 | -10/Materials | Build established: Mutant 444 | -10/Materials | Discovered new exit (range 16) 460 | -10/Materials | Central database locked down 721 | -10/Materials | Discovered new exit (range 7) 821 | -10/Materials | Core integrity fell below 50% 991 | -10/Materials | Entered Mines 1007 | -10/Mines | Met a Derelict bent on vengeance 1036 | -10/Mines | Deemed a non-threat by the Exiles lab entrance 1042 | -10/Mines | Assisted by bots powering up and referring to "LRC-V3" 1049 | -10/Mines | Discovered new exit (range 5) 1067 | -10/Mines | Entered Exiles 1067 | -10/Exiles | Accompanied by 3 allies 1080 | -10/Exiles | Met 8R-AWN 1090 | -10/Exiles | Met EX-HEX 1110 | -10/Exiles | Met EX-BIN 1118 | -10/Exiles | Aligned with FarCom system 1118 | -10/Exiles | Given EX-Vault access code 1143 | -10/Exiles | Opened EX-Vault 1150 | -10/Exiles | Found XL Autogun Array 1163 | -10/Exiles | Warned to stay clear of 0b10 Research branches 1171 | -10/Exiles | Exiles lab attacked by MAIN.C 1187 | -10/Exiles | Learned location of Zion (-7) 1238 | -10/Exiles | Discovered new exit (range 14) 1278 | -10/Exiles | Left Exiles lab with XL Autogun Array 1278 | -10/Exiles | Entered Mines 1278 | -9/Mines | Accompanied by 3 allies 1294 | -9/Mines | Discovered new exit (range 15) 1320 | -9/Mines | Entered Materials 1320 | -8/Materials | Accompanied by 3 allies 1320 | -8/Materials | Evolved 4 slots: Propulsion x1, Utility x1, Weapon x2 1459 | -8/Materials | Discovered new exit (range 13) 1734 | -8/Materials | Discovered new exit (range 16) 1743 | -8/Materials | Identified exit to Factory 1840 | -8/Materials | Discovered exit to Factory (range 10) 1998 | -8/Materials | Build established: Skirmisher 2039 | -8/Materials | Repaired Hover Unit 2307 | -8/Materials | Repaired Imp. Hover Unit 2343 | -8/Materials | Repaired Imp. Hover Unit 2566 | -8/Materials | Identified exit to Garrison 2592 | -8/Materials | Entered Garrison 2607 | -8/Garrison | Garrison Relay disabled 2629 | -8/Garrison | Triggered checkpoint 2650 | -8/Garrison | Phase Generator disabled 2766 | -8/Garrison | Triggered checkpoint 2920 | -8/Garrison | Destroyed 9 combat bots 2930 | -8/Garrison | Triggered checkpoint 2962 | -8/Garrison | Garrison Relay disabled 3028 | -8/Garrison | Discovered new exit (range 13) 3074 | -8/Garrison | Triggered checkpoint 3104 | -8/Garrison | Discovered new exit (range 14) 3105 | -8/Garrison | Spotted B-75 Beast 3105 | -8/Garrison | Spotted B-75 Beast 3116 | -8/Garrison | Triggered checkpoint 3123 | -8/Garrison | Garrison Relay disabled 3320 | -8/Garrison | Garrison Relay disabled 3362 | -8/Garrison | Garrison Relay disabled 3380 | -8/Garrison | Discovered new exit (range 12) 3418 | -8/Garrison | Triggered checkpoint 3421 | -8/Garrison | Discovered new exit (range 3) 3568 | -8/Garrison | Identified exit to Materials 3569 | -8/Garrison | Entered Materials 3569 | -8/Materials | Accompanied by 3 allies 3663 | -8/Materials | Identified exit to Garrison 3670 | -8/Materials | Entered Garrison 3670 | -8/Garrison | Accompanied by 1 ally 3740 | -8/Garrison | Garrison Relay disabled 3941 | -8/Garrison | Build established: Hacker-Skirmisher 4051 | -8/Garrison | Triggered checkpoint 4054 | -8/Garrison | Triggered checkpoint 4101 | -8/Garrison | Spotted B-75 Beast 4101 | -8/Garrison | Garrison Relay disabled 4115 | -8/Garrison | Discovered new exit (range 69) 4115 | -8/Garrison | Discovered new exit (range 61) 4115 | -8/Garrison | Discovered new exit (range 30) 4116 | -8/Garrison | Triggered checkpoint 4127 | -8/Garrison | Garrison Relay disabled 4140 | -8/Garrison | Phase Generator disabled 4228 | -8/Garrison | Triggered checkpoint 4297 | -8/Garrison | Destroyed 8 combat bots 4380 | -8/Garrison | Triggered checkpoint 4384 | -8/Garrison | Garrison Relay disabled 4431 | -8/Garrison | Triggered checkpoint 4460 | -8/Garrison | Garrison Relay disabled 4464 | -8/Garrison | Triggered checkpoint 4612 | -8/Garrison | Triggered checkpoint 4634 | -8/Garrison | Build established: Scavenger-Skirmisher 4639 | -8/Garrison | Identified exit to Materials 4678 | -8/Garrison | Triggered checkpoint 4704 | -8/Garrison | Garrison Relay disabled 4746 | -8/Garrison | Learned Materials security intel 4864 | -8/Garrison | Entered Materials 4864 | -8/Materials | Accompanied by 3 allies 5030 | -8/Materials | Core integrity fell below 50% 5179 | -8/Materials | Discovered exit to Factory (range 16) 5264 | -8/Materials | First assault squad dispatched 5340 | -8/Materials | High security lockdown imminent 5363 | -8/Materials | Destroyed 7 combat bots 5394 | -8/Materials | Entered Factory 5394 | -7/Factory | Evolved 2 slots: Propulsion x1, Utility x1 5398 | -7/Factory | Identified exit to DSF 5483 | -7/Factory | Identified exit to Lower Caves 5794 | -7/Factory | First assault squad dispatched 5896 | -7/Factory | Discovered new exit (range 7) 5989 | -7/Factory | Lost 6 parts (1p3n2u) 6441 | -7/Factory | Lost 3 parts (3n) 6472 | -7/Factory | Destroyed 7 combat bots 6714 | -7/Factory | Core integrity fell below 50% 6788 | -7/Factory | Destroyed 9 combat bots 6790 | -7/Factory | Lost 9 parts (1p5n1u2w) 7070 | -7/Factory | Entered Lower Caves 7129 | -7/Lower Caves | Build established: Mutant 10002 | -7/Lower Caves | Met a Warlord Commander 10003 | -7/Lower Caves | Learned location of Warlord (-4) 10004 | -7/Lower Caves | Warlord Commander delivered Encrypted Comm Array 10006 | -7/Lower Caves | Found Encrypted Comm Array 10102 | -7/Lower Caves | Identified exit to Lower Caves 10167 | -7/Lower Caves | Attracted the attention of an 0b10 checkpoint 10216 | -7/Lower Caves | Entered another Lower Caves area 10216 | -7/Lower Caves | Discovered new exit (range 8) 10322 | -7/Lower Caves | Core integrity fell below 20% 10323 | -7/Lower Caves | Attracted the attention of an 0b10 checkpoint 10549 | -7/Lower Caves | Entered Factory 10549 | -6/Factory | Evolved 2 slots: Utility x2 10569 | -6/Factory | Discovered new exit (range 7) 10678 | -6/Factory | Identified exit to Garrison 10689 | -6/Factory | Garrison activated, responded to threat 10959 | -6/Factory | Found Rocket Array 11079 | -6/Factory | Repaired Hvy. Battle Rifle? 11100 | -6/Factory | Build established: Hacker-Mutant 11201 | -6/Factory | Repaired Sml. Storage Unit 11249 | -6/Factory | First assault squad dispatched 11251 | -6/Factory | Repaired Gravmag System 11323 | -6/Factory | Repaired Broken Lrn. Missile Launcher 11413 | -6/Factory | Build established: Hacker-Skirmisher 11463 | -6/Factory | Joined by Warlord Geek squad 11596 | -6/Factory | Joined by Warlord Chimera squad 11638 | -6/Factory | Discovered new exit (range 13) 12032 | -6/Factory | Joined by Warlord Muscle squad 12047 | -6/Factory | Hacking Suite fried by hacking feedback 12128 | -6/Factory | Lost 7 parts (1n1u5w) 12130 | -6/Factory | Lost 3 allies 12188 | -6/Factory | Joined by Warlord Dakka squad 12281 | -6/Factory | Discovered new exit (range 15) 12301 | -6/Factory | Lost 3 allies 12303 | -6/Factory | Identified exit to Factory 12374 | -6/Factory | Identified exit to Garrison 12395 | -6/Factory | Build established: Hacker-Mutant 12500 | -6/Factory | Entered Garrison 12571 | -6/Garrison | Rescued a captive Derelict 12571 | -6/Garrison | Rescued a captive Derelict 12618 | -6/Garrison | Triggered checkpoint 12619 | -6/Garrison | Lost 3 parts (1n1u1w) 12624 | -6/Garrison | Core integrity fell below 50% 12720 | -6/Garrison | Garrison Relay disabled 12787 | -6/Garrison | Triggered checkpoint 12957 | -6/Garrison | Discovered exit to Factory (range 8) 12969 | -6/Garrison | Spotted B-86 Titan 12970 | -6/Garrison | Spotted B-75 Beast 13190 | -6/Garrison | Rewired B-90 Cyclops 13222 | -6/Garrison | Allies destroyed B-86 Titan 13232 | -6/Garrison | Lost 4 parts (2n1u1w) 13362 | -6/Garrison | Triggered checkpoint 13433 | -6/Garrison | Garrison Relay disabled 13502 | -6/Garrison | Triggered checkpoint 13522 | -6/Garrison | Triggered checkpoint 13564 | -6/Garrison | Triggered checkpoint 13688 | -6/Garrison | Triggered checkpoint 13694 | -6/Garrison | Discovered exit to Factory (range 12) 13706 | -6/Garrison | Core integrity fell below 20% 13886 | -6/Garrison | Triggered checkpoint 13919 | -6/Garrison | Garrison Relay disabled 13939 | -6/Garrison | Discovered exit to Factory (range 15) 13959 | -6/Garrison | Phase Generator disabled 14005 | -6/Garrison | Discovered exit to Factory (range 64) 14005 | -6/Garrison | Discovered exit to Factory (range 32) 14005 | -6/Garrison | Discovered exit to Factory (range 35) 14005 | -6/Garrison | Discovered new exit (range 30) 14051 | -6/Garrison | Spotted B-75 Beast 14066 | -6/Garrison | Destroyed B-75 Beast 14081 | -6/Garrison | Garrison Relay disabled 14132 | -6/Garrison | Triggered checkpoint 14134 | -6/Garrison | Garrison Relay disabled 14246 | -6/Garrison | Entered Factory 14246 | -5/Factory | Accompanied by 1 ally 14246 | -5/Factory | Evolved 2 slots: Utility x2 14324 | -5/Factory | Build established: Hacker-Sprinter 14328 | -5/Factory | Fabricated O-24 Administrator? 14409 | -5/Factory | Fabricated Cmb. Linear Gravjet (x2) 14464 | -5/Factory | Identified exit to Upper Caves 14478 | -5/Factory | Repaired Railgun 14524 | -5/Factory | Repaired Broken Railgun? 14621 | -5/Factory | Fabricated O-24 Administrator? 14846 | -5/Factory | First assault squad dispatched 15062 | -5/Factory | Build established: Hacker-Gunner 15159 | -5/Factory | Fabricated Lgt. Quantum Reactor? 15336 | -5/Factory | Joined by Warlord Chimera squad 15406 | -5/Factory | Joined by Warlord Infantry squad 15471 | -5/Factory | High security lockdown imminent 15518 | -5/Factory | Lost 5 allies 15532 | -5/Factory | Lost 6 parts (4u2w) 15551 | -5/Factory | High security lockdown engaged 15569 | -5/Factory | Entered Upper Caves 15665 | -5/Upper Caves | Attracted the attention of an 0b10 checkpoint 15921 | -5/Upper Caves | Discovered new exit (range 8) 15931 | -5/Upper Caves | Entered another Upper Caves area 16017 | -5/Upper Caves | Spotted B-75 Beast 16039 | -5/Upper Caves | Attracted the attention of an 0b10 checkpoint 16118 | -5/Upper Caves | Discovered new exit (range 8) 16183 | -5/Upper Caves | Entered Zhirov 16183 | -5/Zhirov | Discovered new exit (range 3) 16191 | -5/Zhirov | Met Zhirov 16202 | -5/Zhirov | Found Alien Artifact 16202 | -5/Zhirov | Identified Integrated Dissipator 16202 | -5/Zhirov | Installed Integrated Dissipator, increased core heat dissipation (+20) 16255 | -5/Zhirov | Learned location of Quarantine (-3) 16255 | -5/Zhirov | Learned location of Testing (-2) 16255 | -5/Zhirov | Learned location of Command (-1) 16262 | -5/Zhirov | Zhirov requested help retrieving the SGEMP Prototype 16280 | -5/Zhirov | Found Alien Artifact 16297 | -5/Zhirov | Entered Proximity Caves 16300 | -4/Proximity Caves | Spotter reported a threat 16300 | -4/Proximity Caves | Spotter reported a threat 16417 | -4/Proximity Caves | Spotted B-86 Titan 16453 | -4/Proximity Caves | Discovered new exit (range 5) 16466 | -4/Proximity Caves | Entered Factory 16466 | -4/Factory | Evolved 2 slots: Propulsion x1, Utility x1 16467 | -4/Factory | Identified exit to Armory 16537 | -4/Factory | Repaired Lyr. Light Armor Plating 16646 | -4/Factory | Identified exit to Upper Caves 16646 | -4/Factory | Identified exit to Extension 16651 | -4/Factory | Identified Transdimensional Reconstructor 16716 | -4/Factory | Search patrols dispatched 16806 | -4/Factory | Discovered new exit (range 45) 16951 | -4/Factory | Warped through subspace 16960 | -4/Factory | Found Prototype Hackware 16960 | -4/Factory | Identified Exp. Hacking Suite 16998 | -4/Factory | Joined by Warlord Ranger squad 17172 | -4/Factory | Joined by Warlord Dakka squad 17201 | -4/Factory | P-70 Sage assimilated allied OL-N20(s) 17235 | -4/Factory | Joined by Warlord Geek squad 17251 | -4/Factory | Discovered new exit (range 16) 17316 | -4/Factory | Fabricated H-77 Assassin? 17317 | -4/Factory | Joined by Warlord Dakka squad 17377 | -4/Factory | Garrison activated, responded to threat 17429 | -4/Factory | Lost 7 allies 17443 | -4/Factory | Identified exit to Garrison 17452 | -4/Factory | Fabricated H-77 Assassin (x2) 17464 | -4/Factory | Build established: Hacker-Skirmisher 17551 | -4/Factory | Fabricated H-77 Assassin? 17554 | -4/Factory | Found Prototype Processor 17554 | -4/Factory | Identified Exp. Melee Analysis Suite 17556 | -4/Factory | Repaired Lyr. Light Armor Plating 17621 | -4/Factory | Entered Garrison 17621 | -4/Garrison | Accompanied by 6 allies 17639 | -4/Garrison | Triggered checkpoint 17657 | -4/Garrison | Garrison Relay disabled 17667 | -4/Garrison | Spotted B-86 Titan 17686 | -4/Garrison | Allies destroyed B-86 Titan 17833 | -4/Garrison | Triggered checkpoint 17966 | -4/Garrison | Triggered checkpoint 17976 | -4/Garrison | Triggered checkpoint 18122 | -4/Garrison | Triggered checkpoint 18159 | -4/Garrison | Garrison Relay disabled 18172 | -4/Garrison | Discovered new exit (range 13) 18174 | -4/Garrison | Spotted B-75 Beast 18178 | -4/Garrison | Lost 3 allies 18368 | -4/Garrison | Triggered checkpoint 18432 | -4/Garrison | Triggered checkpoint 18541 | -4/Garrison | Lost 4 parts (2u2w) 18733 | -4/Garrison | Discovered new exit (range 12) 18776 | -4/Garrison | Triggered checkpoint 18868 | -4/Garrison | Garrison Relay disabled 19032 | -4/Garrison | Discovered new exit (range 10) 19100 | -4/Garrison | Garrison Relay disabled 19384 | -4/Garrison | Allies destroyed B-75 Beast 19384 | -4/Garrison | Rewired B-75 Beast 19642 | -4/Garrison | Attempted to access garrison exit controls, blocked by remote lockdown 19697 | -4/Garrison | Build established: Commander-Skirmisher 19814 | -4/Garrison | Entered Factory 19814 | -4/Factory | Accompanied by 8 allies 19853 | -4/Factory | Repaired Weapon Cycler 19854 | -4/Factory | System corruption reached 10% 19887 | -4/Factory | Lost 3 parts (1p2u) 19888 | -4/Factory | Spotted B-86 Titan 19898 | -4/Factory | Lost 7 allies 19910 | -4/Factory | Joined by Warlord Dakka squad 19954 | -4/Factory | Joined by Warlord Dakka squad 19994 | -4/Factory | Garrison activated, responded to threat 20064 | -4/Factory | First assault squad dispatched 20083 | -4/Factory | Allied Derelicts emerged from ambush trap array 20190 | -4/Factory | Fabricated H-77 Assassin? 20212 | -4/Factory | Lost 10 allies 20249 | -4/Factory | High security lockdown imminent 20253 | -4/Factory | Discovered new exit (range 4) 20296 | -4/Factory | Fabricated H-77 Assassin? 20329 | -4/Factory | High security lockdown engaged 20434 | -4/Factory | Joined by Warlord Muscle squad 20453 | -4/Factory | Discovered exit to Extension (range 12) 20460 | -4/Factory | Entered Extension 20506 | -4/Extension | Rescued a captive Derelict 20643 | -4/Extension | Energy Cycler disabled 20644 | -4/Extension | Rescued a captive Derelict 20644 | -4/Extension | Rescued a captive Derelict 20646 | -4/Extension | Rescued a captive Derelict 20649 | -4/Extension | Rescued a captive Derelict 20649 | -4/Extension | Rescued a captive Derelict 20649 | -4/Extension | Rescued a captive Derelict 20652 | -4/Extension | Rescued a captive Derelict 20661 | -4/Extension | Rescued a captive Derelict 20802 | -4/Extension | Lost 4 allies 20831 | -4/Extension | Spotted B-86 Titan 20893 | -4/Extension | Spotted B-86 Titan 20915 | -4/Extension | Destroyed B-86 Titan 20938 | -4/Extension | Discovered new exit (range 15) 20970 | -4/Extension | Lost 10 allies 20978 | -4/Extension | Lost 15 parts (2p3n6u4w) 21065 | -4/Extension | Discovered new exit (range 10) 21065 | -4/Extension | Discovered new exit (range 6) 21102 | -4/Extension | Entered Cetus 21109 | -4/Cetus | Spotted Cetus Guard 21109 | -4/Cetus | Spotted Cetus Guard 21109 | -4/Cetus | Spotted Cetus Guard 21122 | -4/Cetus | Destroyed Cetus Guard 21133 | -4/Cetus | Destroyed Cetus Guard 21143 | -4/Cetus | Destroyed Cetus Guard 21144 | -4/Cetus | Spotted Cetus Guard 21160 | -4/Cetus | Destroyed Cetus Guard 21274 | -4/Cetus | Discovered new exit (range 20) 21287 | -4/Cetus | Spotted Cetus Guard 21287 | -4/Cetus | Spotted Cetus Guard 21290 | -4/Cetus | Spotted Cetus Guard 21303 | -4/Cetus | Spotted Cetus Guard 21315 | -4/Cetus | Core integrity fell below 50% 21372 | -4/Cetus | Destroyed Cetus Guard 21391 | -4/Cetus | Discovered new exit (range 20) 21402 | -4/Cetus | Destroyed Cetus Guard 21408 | -4/Cetus | Destroyed Cetus Guard 21422 | -4/Cetus | Destroyed Cetus Guard 21425 | -4/Cetus | Met Revision 17 21446 | -4/Cetus | Destroyed 7 combat bots 21453 | -4/Cetus | Lost 10 parts (1p4n3u2w) 21501 | -4/Cetus | Entered Archives 21610 | -4/Archives | Discovered new exit (range 15) 21633 | -4/Archives | Unable to access archive contents 21720 | -4/Archives | Build established: Scavenger-Mutant 21720 | -4/Archives | Discovered new exit (range 20) 21728 | -4/Archives | Discovered new exit (range 20) 21835 | -4/Archives | Entered Hub_04(d) 21845 | -4/Hub_04(d) | Spotted B-86 Titan 21911 | -4/Hub_04(d) | Identified exit to Research 21933 | -4/Hub_04(d) | Found Imp. Powered Armor 22166 | -4/Hub_04(d) | Core integrity fell below 20% 22173 | -4/Hub_04(d) | Entered Research 22173 | -3/Research | Evolved 2 slots: Power x1, Utility x1 22200 | -3/Research | Lost 5 parts (1p2n1u1w) 22231 | -3/Research | Joined by Warlord Ghost squad 22280 | -3/Research | Identified exit to Quarantine 22283 | -3/Research | Found Fusion Bomb Launcher 22373 | -3/Research | Revision forces began assault on 0b10 22386 | -3/Research | Met up with Revision 17++ 22517 | -3/Research | Found Prototype Device 22517 | -3/Research | Identified Exp. Thermal Shield 22526 | -3/Research | Lost 3 allies 22774 | -3/Research | Entered Quarantine 22775 | -3/Quarantine | Maximum security lockdown engaged 22779 | -3/Quarantine | Build established: Scavenger-Gunner 22853 | -3/Quarantine | Found Alien Artifact 22853 | -3/Quarantine | Identified Terrabomb 22853 | -3/Quarantine | Used Terrabomb 22860 | -3/Quarantine | Found Terrabomb 22883 | -3/Quarantine | Used Terrabomb 22889 | -3/Quarantine | Found Alien Artifact 22892 | -3/Quarantine | Found Alien Artifact 22896 | -3/Quarantine | Found Transdimensional Reconstructor 22898 | -3/Quarantine | Found Alien Artifact 22898 | -3/Quarantine | Identified Hpw. Transdimensional Reconstructor 22898 | -3/Quarantine | Warped through subspace 22938 | -3/Quarantine | Identified Dimensional Node Initializer (x2) 22938 | -3/Quarantine | Initialized slip node 22953 | -3/Quarantine | Discovered new exit (range 16) 22960 | -3/Quarantine | Warped through subspace 22979 | -3/Quarantine | Found Alien Artifact 22979 | -3/Quarantine | Identified Subatomic Replicator 22981 | -3/Quarantine | Spotted Striker 23013 | -3/Quarantine | Spotted Investigator 23013 | -3/Quarantine | Spotted Executioner 23014 | -3/Quarantine | Core integrity fell below 50% 23036 | -3/Quarantine | Entered Research 23036 | -2/Research | Evolved 2 slots: Utility x2 23058 | -2/Research | Identified exit to DSF 23066 | -2/Research | Lost 19 parts (3p5n8u3w) 23102 | -2/Research | Used Subatomic Replicator to replicate Nuclear Pulse Array 23185 | -2/Research | Identified exit to Testing 23315 | -2/Research | First assault squad dispatched 23329 | -2/Research | Spotted B-90 Cyclops 23338 | -2/Research | Fabricated Imp. Diametric Drive? 23423 | -2/Research | Entered Testing 23424 | -2/Testing | Maximum security lockdown engaged 23436 | -2/Testing | Found Prototype Energy Cannon 23436 | -2/Testing | Identified Hpw. Disruptor Cannon 23467 | -2/Testing | Found Prototype Processor 23467 | -2/Testing | Identified Exp. Core Analyzer 23546 | -2/Testing | Spotted Striker 23557 | -2/Testing | Spotted Executioner 23557 | -2/Testing | Spotted Executioner 23574 | -2/Testing | Core integrity fell below 50% 23595 | -2/Testing | Spotted Fortress 23600 | -2/Testing | Lost 8 parts (1p3n2u2w) 23609 | -2/Testing | Core integrity fell below 20% 23630 | -2/Testing | Discovered new exit (range 7) 23633 | -2/Testing | Entered Section 7 23634 | -2/Section 7 | Maximum security lockdown engaged 23678 | -2/Section 7 | Found Alien Artifact 23678 | -2/Section 7 | Identified Integrity Redistributor 23678 | -2/Section 7 | Used Integrity Redistributor, redistributed integrity to core (+95) 23739 | -2/Section 7 | Spotted Alpha 7 23741 | -2/Section 7 | Spotted Alpha 7 23756 | -2/Section 7 | Spotted Executioner 23756 | -2/Section 7 | Spotted Executioner 23771 | -2/Section 7 | Spotted B-99 Colossus 23794 | -2/Section 7 | Lost 3 parts (1p1n1u) 23822 | -2/Section 7 | Spotted Executioner 23822 | -2/Section 7 | Spotted Executioner 23828 | -2/Section 7 | Destroyed by H-88 Terminator with KE Penetrator Last Messages --------------- 23761_ Imp. Targeting Computer destroyed. 23763_ Particle Reactor destroyed. 23782_ Penetrated by Slug. 23806_ Q-thruster destroyed. 23806_ Penetrated by Slug. 23812_ Suspension Chamber breached. 23817_ Attempting to rewire Sigix Exoskeleton. 23817_ Sigix Exoskeleton cannot be rewired. 23822_ Slug penetrates Reinforced Barrier. 23822_ Machine disabled. 23823_ Drone sends a signal. 23823_ Slug penetrates Door. 23825_ System corrupted: IFF burst signal emitted. 23826_ Slug penetrates Machine. 23826_ Machine disabled. 23826_ Penetrated by Slug. 23826_ Field Propulsion Array destroyed. 23826_ Penetrated by Slug. 23826_ Slug penetrates Reinforced Barrier. 23828_ Penetrated by Slug. Map ----- +----------------------------------------------------+ | " "" | | " ?? | | """" " " " """" "" ?? | | "?" " " """"""""" ""??? ??? | | "?"?"?" """ "??????" "????? ??? | | """""""""" """"????""" ""???? ?? | | " " " " """ "?" """" | | " " " " """"""""""?""" | | " " " "" "??????" | | """"""""""""" | | ? | | 7C7 ? | | """ C | | ??" """"""""""""C """"" | | """ ""??????????""EE "?? | | h """"""""""""" " "?? | | """?? | | " """"" | | n " | | """ | | " | | | | | | | | | | """""" " """"""""" @ E """"""" | | """"""""""""""""""""""""""" ### E """""?? | | """"""""""""""????"""""""""" ""#?# """""?? | | #############??????##############?####""+#######?? | | ??????????????????????????????????#""" """#????? | | ??????????????????????????????????#""" ""#????? | | ??????????????????????????????????#"" ""#????? | | ??????????????????????????????????#""" """#????? | | ??????????????????????????????????#""" """#????? | | ??????????????????????????????????#""" """#????? | | ??????????????????????????????????#"" ""#????? | | ??????????????????????????????????#" "#????? | | ??????????????????????????????????#" "#????? | | ??????????????????????????????????#" "#????? | | ??????????????????????????????????#"" T"#????? | | ??????????????????????????????????#" " " "#????? | | ??????????????????????????????????#" " " "#????? | | ??????????????????????????????????#" "#" "#????? | | ??????????????????????????????????#"""#?#"""#????? | | ??????????????????????????????????####???####????? | | ?????????????????????????????????????????????????? | | ?????????????????????????????????????????????????? | | ?????????????????????????????????????????????????? | | ?????????????????????????????????????????????????? | | ?????????????????????????????????????????????????? | +----------------------------------------------------+ Best States ------------- Heat Dissipation 101 Energy Generation 37 Energy Capacity 350 Matter Stores 550 Matter Capacity 550 Sight Range 20 Robot Scan Range 16 Terrain Scan Range 16 Terrain Scan Density 10 Jamming Range 16 Additional Mass Support 9 Armor Coverage 900 Core Shielding 30 Propulsion Shielding 90 Weapon Cycling 15 Phase Shifting 15 Evasion (%) 72 Targeting Accuracy 20 Target Analysis 9 Core Analysis 9 Armor Integrity Analysis 30 Recoil Reduction 6 Matter Filtering 50 Kinecelleration 40 Force Boost 30 Offensive Hacking 42 Defensive Hacking 30 Authchip Count 2 Item Schematics ----------------- Lrn. Tractor Beam | -8/Materials | Scanalyzed Imp. Light Armor Plating | -8/Materials | Scanalyzed Lrn. Missile Launcher | -6/Factory | Scanalyzed Hyp. Gauss Rifle | -6/Factory | Scanalyzed Matter Compressor | -6/Factory | Scanalyzed Rocket Array | -6/Factory | Scanalyzed Gauss Rifle | -6/Factory | Scanalyzed Weapon Shielding | -6/Factory | Scanalyzed Imp. Diametric Drive | -5/Factory | Hacked Assault Drone Bay | -5/Zhirov | Free Exp. Heat Sink | -5/Zhirov | Free Exp. Optical Array | -5/Zhirov | Free Imp. Arc Thrower | -5/Zhirov | Free Cmb. Linear Gravjet | -4/Factory | Scanalyzed Hvy. Linear Accelerator | -4/Factory | Scanalyzed Lgt. Quantum Reactor | -4/Factory | Scanalyzed Micro-nuke Launcher | -4/Factory | Scanalyzed Fusion Bomb Launcher | -2/Research | Scanalyzed Robot Schematics ------------------ O-24 Administrator | -7/Factory | Hacked M-36 Artificer | -5/Factory | Hacked I-47 Archangel | -5/Factory | Hacked H-77 Assassin | -4/Factory | Hacked Fabricated ------------ O-24 Administrator | x1 | -5/Factory Cmb. Linear Gravjet | x2 | -5/Factory | Preloaded O-24 Administrator | x1 | -5/Factory Lgt. Quantum Reactor | x2 | -5/Factory | Preloaded H-77 Assassin | x2 | -4/Factory H-77 Assassin | x2 | -4/Factory H-77 Assassin | x2 | -4/Factory H-77 Assassin | x2 | -4/Factory | Authchip H-77 Assassin | x2 | -4/Factory | Authchip Imp. Diametric Drive | x1 | -2/Research Alien Tech Used ----------------- Integrated Dissipator Transdimensional Reconstructor Terrabomb High-powered Transdimensional Reconstructor Dimensional Node Initializer Subatomic Replicator Integrity Redistributor Achievements -------------- Gun Specialist Left-hand Path Streaker Challenges ------------ None Game ------ Seed SpectralFlyingMultitool Manual? 0 Play Time 07:15:33 Cumulative 224.2 hours Start 2024.03.30 @ 20:21:00 End 2024.03.31 @ 03:40:40 Sessions 1 Manual Loads 0 Difficulty Rogue Special Mode None Game No. 94 Rogue 94 Adventurer 0 Explorer 0 Win Type - Total 0 Types 0/0/0/0/0/0/0/0/0 Lore% 62 Gallery% 68 Achievement% 56 Wizard Run 0 Options --------- Layout 0 ASCII 0 Keyboard 1 Movement Arrows Keybinds 0 Fullscreen 1 Font 12/Proggy Map View 83x54 Zoom Use 0% Tactical HUD 1 Map Filters NONE Filters NONE Steam 0 RUN: 372fab2a-d842-478b-8961-3d7222931d59